Workbook

Sheet Date
C3: January | D3: February | E3: March | F3: April | G3: May | H3: June | I3: July | J3: August | K3: September | L3: October | M3: November | N3: December
A5: Monday | C5: 1 | D5: 1 | E5: 1 | F5: 1 | G5: 1 | H5: 1 | I5: 1 | J5: 1 | K5: 1 | L5: 1 | M5: 1 | N5: 1
A6: Tuesday | C6: 2 | D6: 2 | E6: 2 | F6: 2 | G6: 2 | H6: 2 | I6: 2 | J6: 2 | K6: 2 | L6: 2 | M6: 2 | N6: 2
A7: Wednesday | C7: 3 | D7: 3 | E7: 3 | F7: 3 | G7: 3 | H7: 3 | I7: 3 | J7: 3 | K7: 3 | L7: 3 | M7: 3 | N7: 3
A8: Thursday | C8: 4 | D8: 4 | E8: 4 | F8: 4 | G8: 4 | H8: 4 | I8: 4 | J8: 4 | K8: 4 | L8: 4 | M8: 4 | N8: 4
A9: Friday | C9: 5 | D9: 5 | E9: 5 | F9: 5 | G9: 5 | H9: 5 | I9: 5 | J9: 5 | K9: 5 | L9: 5 | M9: 5 | N9: 5
A10: Saturday | C10: 6 | D10: 6 | E10: 6 | F10: 6 | G10: 6 | H10: 6 | I10: 6 | J10: 6 | K10: 6 | L10: 6 | M10: 6 | N10: 6
A11: Sunday | C11: 7 | D11: 7 | E11: 7 | F11: 7 | G11: 7 | H11: 7 | I11: 7 | J11: 7 | K11: 7 | L11: 7 | M11: 7 | N11: 7
A12: Monday | C12: 8 | D12: 8 | E12: 8 | F12: 8 | G12: 8 | H12: 8 | I12: 8 | J12: 8 | K12: 8 | L12: 8 | M12: 8 | N12: 8
A13: Tuesday | C13: 9 | D13: 9 | E13: 9 | F13: 9 | G13: 9 | H13: 9 | I13: 9 | J13: 9 | K13: 9 | L13: 9 | M13: 9 | N13: 9
A14: Wednesday | C14: 10 | D14: 10 | E14: 10 | F14: 10 | G14: 10 | H14: 10 | I14: 10 | J14: 10 | K14: 10 | L14: 10 | M14: 10 | N14: 10
A15: Thursday | C15: 11 | D15: 11 | E15: 11 | F15: 11 | G15: 11 | H15: 11 | I15: 11 | J15: 11 | K15: 11 | L15: 11 | M15: 11 | N15: 11
A16: Friday | C16: 12 | D16: 12 | E16: 12 | F16: 12 | G16: 12 | H16: 12 | I16: 12 | J16: 12 | K16: 12 | L16: 12 | M16: 12 | N16: 12
A17: Saturday | C17: 13 | D17: 13 | E17: 13 | F17: 13 | G17: 13 | H17: 13 | I17: 13 | J17: 13 | K17: 13 | L17: 13 | M17: 13 | N17: 13
A18: Sunday | C18: 14 | D18: 14 | E18: 14 | F18: 14 | G18: 14 | H18: 14 | I18: 14 | J18: 14 | K18: 14 | L18: 14 | M18: 14 | N18: 14
A19: Monday | C19: 15 | D19: 15 | E19: 15 | F19: 15 | G19: 15 | H19: 15 | I19: 15 | J19: 15 | K19: 15 | L19: 15 | M19: 15 | N19: 15
A20: Tuesday | C20: 16 | D20: 16 | E20: 16 | F20: 16 | G20: 16 | H20: 16 | I20: 16 | J20: 16 | K20: 16 | L20: 16 | M20: 16 | N20: 16
A21: Wednesday | C21: 17 | D21: 17 | E21: 17 | F21: 17 | G21: 17 | H21: 17 | I21: 17 | J21: 17 | K21: 17 | L21: 17 | M21: 17 | N21: 17
A22: Thursday | C22: 18 | D22: 18 | E22: 18 | F22: 18 | G22: 18 | H22: 18 | I22: 18 | J22: 18 | K22: 18 | L22: 18 | M22: 18 | N22: 18
A23: Friday | C23: 19 | D23: 19 | E23: 19 | F23: 19 | G23: 19 | H23: 19 | I23: 19 | J23: 19 | K23: 19 | L23: 19 | M23: 19 | N23: 19
A24: Saturday | C24: 20 | D24: 20 | E24: 20 | F24: 20 | G24: 20 | H24: 20 | I24: 20 | J24: 20 | K24: 20 | L24: 20 | M24: 20 | N24: 20
A25: Sunday | C25: 21 | D25: 21 | E25: 21 | F25: 21 | G25: 21 | H25: 21 | I25: 21 | J25: 21 | K25: 21 | L25: 21 | M25: 21 | N25: 21
A26: Monday | C26: 22 | D26: 22 | E26: 22 | F26: 22 | G26: 22 | H26: 22 | I26: 22 | J26: 22 | K26: 22 | L26: 22 | M26: 22 | N26: 22
A27: Tuesday | C27: 23 | D27: 23 | E27: 23 | F27: 23 | G27: 23 | H27: 23 | I27: 23 | J27: 23 | K27: 23 | L27: 23 | M27: 23 | N27: 23
A28: Wednesday | C28: 24 | D28: 24 | E28: 24 | F28: 24 | G28: 24 | H28: 24 | I28: 24 | J28: 24 | K28: 24 | L28: 24 | M28: 24 | N28: 24
A29: Thursday | C29: 25 | D29: 25 | E29: 25 | F29: 25 | G29: 25 | H29: 25 | I29: 25 | J29: 25 | K29: 25 | L29: 25 | M29: 25 | N29: 25
A30: Friday | C30: 26 | D30: 26 | E30: 26 | F30: 26 | G30: 26 | H30: 26 | I30: 26 | J30: 26 | K30: 26 | L30: 26 | M30: 26 | N30: 26
A31: Saturday | C31: 27 | D31: 27 | E31: 27 | F31: 27 | G31: 27 | H31: 27 | I31: 27 | J31: 27 | K31: 27 | L31: 27 | M31: 27 | N31: 27
A32: Sunday | C32: 28 | D32: 28 | E32: 28 | F32: 28 | G32: 28 | H32: 28 | I32: 28 | J32: 28 | K32: 28 | L32: 28 | M32: 28 | N32: 28
A33: Eoday | C33: 29 | D33: 29 | E33: 29 | F33: 29 | G33: 29 | H33: 29 | I33: 29 | J33: 29 | K33: 29 | L33: 29 | M33: 29 | N33: 29
A34: Dragonsday | C34: 30 | D34: 30 | E34: 30 | F34: 30 | G34: 30 | H34: 30 | I34: 30 | J34: 30 | K34: 30 | L34: 30 | M34: 30 | N34: 30

Sheet Fighters...
A1: Special | B1: Save | C1: Stamina Points | E1: Atk | F1: Dmg bonus | G1: Damage Level | J1: Defence | L1: Absorb | O1: Armour | Q1: Attack | R1: Attack | S1: Attack 2 | U1: Health | W1: Size | AB1: Attributes | AF1: Flying | AG1: Ability
G2: Dmg | H2: Dmg | I2: Dmg | J2: Parry | K2: Range | L2: Cut | M2: Thrust | N2: Chop | O2: Body | P2: Shield | Q2: Type | R2: Weapon | U2: SP | V2: WP | W2: feet | X2: HD | Y2: Skill | Z2: Str | AA2: Int | AB2: Will | AC2: Con | AD2: Dex | AE2: Alert | AF2: Class | AI2: Exp | AJ2: total | AO2: Weapon | AP2: Body Armour | AQ2: Breast Plate
AO3: - | AP3: - | AQ3: -
B4: =ROUNDUP((X4+Y4)/2,0) -> 1 | C4: =U4 -> 13 | D4: New Trainee | E4: =Y4+ROUNDUP(AF4/2,0)+INT(+VLOOKUP(R4,weapons,3,FALSE)*MIN(Z4,8)+VLOOKUP(R4,weapons,4,FALSE)*(AD4))+VLOOKUP(W4,size,4) -> 1 | F4: =Z4-VLOOKUP($W4,size,3) -> 0 | G4: =VLOOKUP(VLOOKUP(R4,weapons,6,FALSE)+VLOOKUP($W4,size,3)+Y4-1,New_damage,2,FALSE) -> d6 / d4 | H4: =IF(S4<>" - ",VLOOKUP(S4,weapons,3,FALSE)+VLOOKUP($W4,size,3)," ") ->  | J4: =INT(VLOOKUP(O4,body_armour,5,FALSE)+Y4+AE4+P4+VLOOKUP(W4,size,6)+(Z4+AD4)/2+VLOOKUP(R4,weapons,5,FALSE)/2 ) -> 11 | K4: =12+P4+VLOOKUP(W4,size,5)+AF4*3 -> 13 | L4: =VLOOKUP(VLOOKUP($O4,body_armour,2,FALSE)+IF($W4>6,INT(VLOOKUP($W4,size,7)),0),Armour_translation,2,FALSE) -> 1 | M4: =VLOOKUP(VLOOKUP($O4,body_armour,3,FALSE)+IF($W4>6,INT(VLOOKUP($W4,size,7)),0),Armour_translation,2,FALSE) -> 1 | N4: =VLOOKUP(VLOOKUP($O4,body_armour,4,FALSE)+IF($W4>6,INT(VLOOKUP($W4,size,7)),0),Armour_translation,2,FALSE) -> 1 | O4: Padded | P4: 1 | Q4: =VLOOKUP(R4,weapons,2, FALSE) -> Slash | R4: Arming Sword | S4: - | T4: - | U4: =INT(W4+X4*(4.5+AC4))+3 -> 13 | V4: =2*(W4+AC4) -> 12 | W4: 6 | X4: 1 | Y4: 1 | Z4: 0 | AA4: -1 | AB4: -2 | AC4: 0 | AD4: 0 | AE4: 0 | AI4: =(5+E4)*(10+IF(AF4>0,K4,J4))*((10+F4+G4))*U4*(5+N4)/1000*VLOOKUP(AG4,Specials,3,FALSE)+VLOOKUP(AG4,Specials,2,FALSE) ->  | AJ4: =AH4*AI4*VLOOKUP(AH4,Attackers,2,TRUE) ->  | AL4: 7 | AM4: 26 | AO4: Claw | AP4: Leather | AQ4: Leather
B5: 2 | C5: =U5 -> 18 | D5: Apprentice | E5: 2 | F5: 1 | G5: d8 / d4 | J5: 12 | K5: 13 | L5: 1 | M5: 1 | N5: 1 | O5: Padded | P5: 1 | Q5: Slash | R5: Arming Sword | S5: - | T5: - | U5: 18 | V5: 12 | W5: 6 | X5: 2 | Y5: 2 | Z5: 1 | AA5: -1 | AB5: -1 | AC5: 0 | AD5: 0 | AE5: 0 | AL5: -3 | AM5: 4 | AO5: Thump | AP5: Padded | AQ5: Metal
B6: 3 | C6: 25 | D6: Base guard | E6: 3 | F6: 1 | G6: d8 / d6 | J6: 13 | K6: 13 | L6: 3/4 | M6: 1 | N6: 3/4 | O6: Boiled Leather | P6: 1 | Q6: Slash | R6: Arming Sword | S6: - | T6: - | U6: 25 | V6: 14 | W6: 6 | X6: 3 | Y6: 3 | Z6: 1 | AA6: -1 | AB6: 0 | AC6: 1 | AD6: 0 | AE6: 1 | AL6: -2 | AM6: 6 | AO6: Bite | AP6: Scale (Leather)
B7: 4 | C7: 31 | D7: Corporal / Merc | E7: 5 | F7: 2 | G7: d10 / d6 | J7: 14 | K7: 13 | L7: 1/2 | M7: 1/2 | N7: 1/2 | O7: Scale (Iron) | P7: 1 | Q7: Slash | R7: Arming Sword | S7: - | T7: - | U7: 31 | V7: 14 | W7: 6 | X7: 4 | Y7: 4 | Z7: 2 | AA7: 0 | AB7: 1 | AC7: 1 | AD7: 1 | AE7: 1 | AL7: -3 | AM7: 4 | AO7: Cleaver | AP7: Boiled Leather
B8: 5 | C8: 41 | D8: Seargent / Man at Arms | E8: 6 | F8: 3 | G8: 2d12 | J8: 17 | K8: 14 | L8: 1/4 | M8: 1/2 | N8: 3/4 | O8: Mail Hauberk | P8: 2 | Q8: Slash | R8: Bastard Sword | S8: - | T8: - | U8: 41 | V8: 16 | W8: 6 | X8: 5 | Y8: 5 | Z8: 3 | AA8: 1 | AB8: 1 | AC8: 2 | AD8: 0 | AE8: 2 | AL8: -3 | AM8: 4 | AO8: Bow - Short | AP8: Scale (Iron)
B9: 6 | C9: 48 | D9: Low Knight 1 | E9: 7 | F9: 2 | G9: 2d12+d2 | J9: 16 | K9: 14 | L9: 1/4 | M9: 1/2 | N9: 3/4 | O9: Mail | P9: 2 | Q9: Slash | R9: Bastard Sword | S9: - | T9: - | U9: 48 | V9: 16 | W9: 6 | X9: 6 | Y9: 6 | Z9: 2 | AA9: 0 | AB9: 1 | AC9: 2 | AD9: 1 | AE9: 0 | AL9: -3 | AM9: 4 | AO9: Bow - Long | AP9: Mail Hauberk
B10: 7 | C10: 54 | D10: Low Knight 2 | E10: 8 | F10: 2 | G10: 2d12 + d4 | J10: 18 | K10: 15 | L10: 1/4 | M10: 1/3 | N10: 1/2 | O10: Coat of Plates | P10: 3 | Q10: Slash | R10: Bastard Sword | S10: - | T10: - | U10: 54 | V10: 16 | W10: 6 | X10: 7 | Y10: 7 | Z10: 2 | AA10: 1 | AB10: 1 | AC10: 2 | AD10: 0 | AE10: 0 | AL10: -1 | AM10: 8 | AO10: Crossbow | AP10: Mail
B11: 8 | C11: 69 | D11: Knight | E11: 10 | F11: 2 | G11: 2d12 + 2d4 | J11: 18 | K11: 12 | L11: 1/4 | M11: 1/3 | N11: 1/2 | O11: Coat of Plates | Q11: Slash | R11: Bastard Sword | S11: - | T11: - | U11: 69 | V11: 18 | W11: 6 | X11: 8 | Y11: 8 | Z11: 2 | AA11: 1 | AB11: 2 | AC11: 3 | AD11: 2 | AE11: 1 | AL11: 0 | AM11: 11 | AO11: Battle-axe | AP11: Coat of Plates
B12: 9 | C12: 76 | D12: Top Knight | E12: 12 | F12: 3 | G12: 2d12+d2 | J12: 17 | K12: 12 | L12: 1/5 | M12: 1/4 | N12: 1/3 | O12: Plate | Q12: Bludgeon | R12: Mace | S12: - | T12: - | U12: 76 | V12: 18 | W12: 6 | X12: 9 | Y12: 9 | Z12: 3 | AA12: 2 | AB12: 2 | AC12: 3 | AD12: 0 | AE12: 2 | AL12: 1 | AM12: 14 | AO12: Battle-axe 2 hands | AP12: Plate
B13: 10 | C13: 84 | D13: Local Champion | E13: 14 | F13: 4 | G13: 2d12 + d8 / d6 | J13: 20 | K13: 12 | L13: 1/5 | M13: 1/4 | N13: 1/3 | O13: Plate | Q13: Slash | R13: Battle-axe 2 hands | S13: - | T13: - | U13: 84 | V13: 18 | W13: 6 | X13: 10 | Y13: 10 | Z13: 4 | AA13: 0 | AB13: 0 | AC13: 3 | AD13: 2 | AE13: 2 | AL13: 2 | AM13: 16 | AO13: Hand Axe | AP13: Hide
B14: 11 | C14: 91 | D14: Champion | E14: 15 | F14: 4 | G14: 2d12 + d10/d6 | J14: 22 | K14: 12 | L14: 1/5 | M14: 1/4 | N14: 1/3 | O14: Plate | Q14: Slash | R14: Battle-axe 2 hands | S14: - | T14: - | U14: 91 | V14: 18 | W14: 6 | X14: 11 | Y14: 11 | Z14: 4 | AA14: 1 | AB14: 0 | AC14: 3 | AD14: 2 | AE14: 3 | AL14: 3 | AM14: 18 | AO14: War Hammer | AP14: Thick Hide
B15: 12 | C15: 111 | D15: King's Champion | E15: 17 | F15: 5 | G15: 2d12 + d10 / d8 | J15: 24 | K15: 12 | L15: 1/5 | M15: 1/4 | N15: 1/3 | O15: Plate | Q15: Slash | R15: Battle-axe 2 hands | S15: - | T15: - | U15: 111 | V15: 20 | W15: 6 | X15: 12 | Y15: 12 | Z15: 5 | AA15: 1 | AB15: 1 | AC15: 4 | AD15: 2 | AE15: 3 | AL15: 4 | AM15: 20 | AO15: Club | AP15: Scales
B16: 0 | E16: 5 | F16: 4 | G16: d12 / d8 | K16: 17 | R16: Arming Sword | AL16: 5 | AM16: 22 | AO16: Mace | AP16: Armoured scales
B17: =ROUNDUP((X17+Y17)/2,0) -> 2 | C17: =U17 -> 20 | D17: Smuggler | E17: 4 | F17: 2 | G17: d6 / d4 | J17: 11 | K17: 12 | L17: 3/4 | M17: 1 | N17: 3/4 | O17: Boiled Leather | P17: 0 | Q17: =VLOOKUP(R17,weapons,2, FALSE) -> Chop | R17: Cutlass | S17: - | T17: - | U17: =INT(W17+X17*(4.5+AC17))+3 -> 20 | V17: =2*(W17+AC17) -> 14 | W17: 6 | X17: 2 | Y17: 2 | Z17: 2 | AA17: -1 | AB17: -1 | AC17: 1 | AD17: 0 | AE17: 1 | AH17: 16 | AJ17: =AH17*AI17*VLOOKUP(AH17,Attackers,2,TRUE) ->  | AO17: Spear 2 hands
B18: =ROUNDUP((X18+Y18)/2,0) -> 4 | C18: =U18 -> 31 | D18: Mate / Bosun | E18: 6 | F18: 2 | G18: d8 / d6 | J18: 14 | K18: 12 | L18: 3/4 | M18: 1 | N18: 3/4 | O18: Boiled Leather | P18: 0 | Q18: =VLOOKUP(R18,weapons,2, FALSE) -> Chop | R18: Cutlass | S18: - | T18: - | U18: =INT(W18+X18*(4.5+AC18))+3 -> 31 | V18: =2*(W18+AC18) -> 14 | W18: 6 | X18: 4 | Y18: 4 | Z18: 2 | AA18: -1 | AB18: 0 | AC18: 1 | AD18: 0 | AE18: 2 | AH18: 1 | AJ18: =AH18*AI18*VLOOKUP(AH18,Attackers,2,TRUE) ->  | AO18: Dagger
B19: =ROUNDUP((X19+Y19)/2,0) -> 6 | C19: =U19 -> 41 | D19: Captain | E19: 7 | F19: 3 | G19: d12 / d10 | J19: 16 | K19: 12 | L19: 1/4 | M19: 1/2 | N19: 3/4 | O19: Mail Hauberk | P19: 0 | Q19: =VLOOKUP(R19,weapons,2, FALSE) -> Slash | R19: Arming Sword | S19: - | T19: - | U19: =INT(W19+X19*(4.5+AC19))+3 -> 41 | V19: =2*(W19+AC19) -> 16 | W19: 6 | X19: 5 | Y19: 6 | Z19: 3 | AA19: 1 | AB19: 1 | AC19: 2 | AD19: 0 | AE19: 2 | AH19: 1 | AJ19: =AH19*AI19*VLOOKUP(AH19,Attackers,2,TRUE) -> 
B20: 0 | F20: 4 | H20: =IF(S20<>" - ",VLOOKUP(S20,weapons,3,FALSE)+VLOOKUP($W20,size,3)," ") ->  | K20: 17 | AL20: 10 | AM20: 32 | AO20: Cutlass
B21: 0 | F21: 4 | K21: 17 | AO21: Falchion
B22: 0 | F22: 4 | K22: 17 | AO22: Short sword
B23: 0 | F23: 4 | K23: 17 | AO23: Scimitar
B24: 0 | F24: 4 | K24: 17 | AO24: Arming Sword
B25: 0 | F25: 4 | K25: 17 | AO25: Bastard Sword
B26: 0 | F26: 4 | K26: 17 | AO26: Great Sword
B27: 0 | F27: 4 | K27: 17 | AO27: Staff
B28: 0 | F28: 4 | K28: 17 | AO28: Missile
B29: 0 | F29: 4 | K29: 17
B30: 0 | F30: 4 | K30: 17
B31: 0 | F31: 4 | K31: 17
B32: =ROUNDUP((X32+Y32)/2,0) -> 0 | F32: 4 | K32: 17
F33: 4 | K33: 17
F34: 4 | K34: 17
F35: 4 | K35: 17
F36: 4 | K36: 17
F37: 4 | K37: 17
F38: 4 | K38: 17
E39: =Y39+ROUNDUP(AF39/2,0)+INT(+VLOOKUP(R39,weapons,3,FALSE)*MIN(Z39,8)+VLOOKUP(R39,weapons,4,FALSE)*(AD39+VLOOKUP(O39,body_armour,5,FALSE)))+VLOOKUP(W39,size,4) ->  | F39: 4 | H39: =IF(S39<>" - ",VLOOKUP(S39,weapons,3,FALSE)+VLOOKUP($W39,size,3)," ") ->  | I39: =IF(T39<>" - ",VLOOKUP(T39,weapons,3,FALSE)+VLOOKUP($W39,size,3)," ") ->  | J39: =INT(VLOOKUP(O39,body_armour,9,FALSE)+Y39+AE39+P39+VLOOKUP(W39,size,6)+(Z39+AD39)/2+VLOOKUP(R39,weapons,5,FALSE)/2 ) ->  | K39: =12+P39+VLOOKUP(W39,size,5)+AF39*3 -> 17

Sheet Humanoids
A1: Special | B1: Save | C1: Stamina Points | E1: Atk | F1: Dmg bonus | G1: Damage Level | J1: Defence | L1: Absorb | O1: Armour | Q1: Attack | R1: Attack | S1: Attack 2 | T1: Attack 3 | U1: Health | W1: Size | AB1: Attributes | AF1: Flying | AG1: Ability
G2: Dmg | H2: Dmg | I2: Dmg | J2: Parry | K2: Range | L2: Cut | M2: Thrust | N2: Chop | O2: Body | P2: Shield | Q2: Type | R2: Weapon | U2: SP | V2: WP | W2: feet | X2: HD | Y2: Skill | Z2: Str | AA2: Int | AB2: Will | AC2: Con | AD2: Dex | AE2: Alert | AF2: Class | AI2: Exp | AJ2: total | AO2: Weapon | AP2: Body Armour | AQ2: Breast Plate
AO3: - | AP3: - | AQ3: -
B4: =ROUNDUP((X4+Y4)/2,0) -> 2 | C4: =U4 -> 11 | D4: Kobold | E4: =Y4+ROUNDUP(AF4/2,0)+INT(+VLOOKUP(R4,weapons,3,FALSE)*MIN(Z4,8)+VLOOKUP(R4,weapons,4,FALSE)*(AD4))+VLOOKUP(W4,size,4) -> 2 | F4: =Z4-VLOOKUP($W4,size,3) -> -2 | G4: =VLOOKUP(VLOOKUP(R4,weapons,6,FALSE)+VLOOKUP($W4,size,3)+VLOOKUP(R4,weapons,8,FALSE)*(Y4-1),New_damage,2,FALSE) -> 2d4 | H4: =IF(S4<>" - ",VLOOKUP(S4,weapons,3,FALSE)+VLOOKUP($W4,size,3)," ") ->  | J4: =INT(VLOOKUP(O4,body_armour,5,FALSE)+Y4+AE4+P4+VLOOKUP(W4,size,6)+(Z4+AD4)/2+VLOOKUP(R4,weapons,5,FALSE)/2 ) -> 14 | K4: =12+P4+VLOOKUP(W4,size,5)+AF4*3 -> 13 | L4: =VLOOKUP(VLOOKUP($O4,body_armour,2,FALSE)+IF($W4>6,INT(VLOOKUP($W4,size,7)),0),Armour_translation,2,FALSE) -> 1 | M4: =VLOOKUP(VLOOKUP($O4,body_armour,3,FALSE)+IF($W4>6,INT(VLOOKUP($W4,size,7)),0),Armour_translation,2,FALSE) -> 1.5 | N4: =VLOOKUP(VLOOKUP($O4,body_armour,4,FALSE)+IF($W4>6,INT(VLOOKUP($W4,size,7)),0),Armour_translation,2,FALSE) -> 1.5 | O4: Scales | P4: 1 | Q4: =VLOOKUP(R4,weapons,2, FALSE) -> Pierce | R4: Spear | S4: - | T4: - | U4: =INT(W4+X4*(4.5+AC4))+3 -> 11 | V4: =2*(W4+AC4) -> 12 | W4: 6 | X4: 0.5 | Y4: 2 | Z4: -2 | AA4: 0 | AB4: 0 | AC4: 0 | AD4: 0 | AE4: 0 | AI4: =(5+E4)*(10+VLOOKUP(R4,weapons,6,FALSE)+Y4)*U4*(5+VLOOKUP(O4,body_armour,6,FALSE))/1000*VLOOKUP(AG4,Specials,3,FALSE)+VLOOKUP(AG4,Specials,2,FALSE) -> 10.78 | AJ4: =AH4*AI4*VLOOKUP(AH4,Attackers,2,TRUE) -> 0 | AL4: 7 | AM4: 26 | AO4: Claw | AP4: Leather | AQ4: Leather
B5: 2 | C5: =U5 -> 10 | D5: Kobold - leader | E5: 2 | F5: 1 | G5: d8 / d4 | H5: =IF(S5<>" - ",VLOOKUP(S5,weapons,3,FALSE)+VLOOKUP($W5,size,3)," ") ->  | I5: =IF(T5<>" - ",VLOOKUP(T5,weapons,3,FALSE)+VLOOKUP($W5,size,3)," ") ->  | J5: 13 | K5: =12+P5+VLOOKUP(W5,size,5)+AF5*3 -> 14 | L5: 1 | M5: 1.5 | N5: 1.5 | O5: Scales | P5: 0 | Q5: Pierce | R5: Spear 2 hands | S5: - | T5: - | U5: =INT(W5+X5*(4.5+AC5))+3 -> 10 | V5: 6 | W5: 3 | X5: 1 | Y5: 3 | Z5: -1 | AA5: 1 | AB5: 0 | AC5: 0 | AD5: 1 | AE5: 0 | AI5: 12.41333333 | AJ5: 0 | AL5: -3 | AM5: 4 | AO5: Thump | AP5: Padded | AQ5: Metal
B6: 4 | C6: 18 | D6: Kobold - chief | E6: 6 | F6: 0 | G6: d12 / d10 | J6: 16 | K6: 12 | L6: 1 | M6: 1 | N6: 1 | O6: Hide | P6: 0 | Q6: Pierce | R6: Spear 2 hands | S6: - | T6: - | U6: 18 | V6: 12 | W6: 6 | X6: 2 | Y6: 5 | Z6: 0 | AA6: 1 | AB6: 0 | AC6: 0 | AD6: 1 | AE6: 0 | AI6: 40.7484 | AJ6: 0 | AL6: -3 | AM6: 4 | AO6: Bite | AP6: Scale (Leather)
B7: 4 | C7: 32 | D7: Kobold - Giant | E7: 5 | F7: -1 | G7: d10 / d8 | J7: 13 | K7: 11 | L7: 1/3 | M7: 1/2 | N7: 3/4 | O7: Thick Hide | P7: 0 | Q7: Pierce | R7: Spear 2 hands | S7: - | T7: - | U7: 32 | V7: 16 | W7: 7 | X7: 4 | Y7: 3 | Z7: 0 | AA7: 1 | AB7: 0 | AC7: 1 | AD7: 1 | AE7: 0 | AI7: 69.312 | AJ7: 0 | AL7: -3 | AM7: 4 | AO7: Hug | AP7: Boiled Leather
B8: 2 | C8: 11 | D8: Goblin | E8: 3 | F8: 3 | G8: 2d4 | J8: 12 | K8: 14 | L8: 3/4 | M8: 1 | N8: 3/4 | O8: Boiled Leather | P8: 1 | Q8: Pierce | R8: Short sword | S8: - | T8: - | U8: 11 | V8: 8 | W8: 4 | X8: 1 | Y8: 2 | Z8: 2 | AA8: -2 | AB8: -2 | AC8: 0 | AD8: 2 | AE8: 1 | AI8: 14.17386667 | AJ8: 0 | AL8: -3 | AM8: 4 | AO8: Cleaver | AP8: Scale (Iron)
B9: 1 | C9: 9 | D9: Goblin - archer | E9: 3 | F9: 2 | G9: d4 | J9: 11 | K9: 13 | L9: 1 | M9: 1 | N9: 1 | O9: Padded | P9: 0 | Q9: Pierce | R9: Bow - Short | S9: - | T9: - | U9: 9 | V9: 8 | W9: 4 | X9: 0.5 | Y9: 1 | Z9: 1 | AA9: -1 | AB9: -1 | AC9: 0 | AD9: 3 | AE9: 1 | AI9: 10.368 | AJ9: 0 | AL9: -2 | AM9: 6 | AO9: Bow - Short | AP9: Mail Hauberk
B10: 3 | C10: 18 | D10: Goblin - leader | E10: 6 | F10: 3 | G10: d8 / d6 | J10: 14 | K10: 15 | L10: 1/4 | M10: 1/2 | N10: 3/4 | O10: Mail Hauberk | P10: 2 | Q10: Bludgeon | R10: Morning Star-Flail | S10: - | T10: - | U10: 18 | V10: 10 | W10: 4 | X10: 2 | Y10: 4 | Z10: 2 | AA10: -1 | AB10: 0 | AC10: 1 | AD10: 3 | AE10: 1 | AI10: 43.3884 | AJ10: 0 | AL10: -1 | AM10: 8 | AO10: Bow - Long | AP10: Mail
B11: 4 | C11: 24 | D11: Goblin - Chief | E11: 9 | F11: 4 | G11: d10 / d6 | J11: 16 | K11: 14 | L11: 1/2 | M11: 1/2 | N11: 1/2 | O11: Scale (Iron) | P11: 2 | Q11: Pierce | R11: Morning Star | S11: - | T11: - | U11: 24 | V11: 11 | W11: 4.5 | X11: 3 | Y11: 5 | Z11: 4 | AA11: 0 | AB11: 0 | AC11: 1 | AD11: 2 | AE11: 1 | AI11: 71.5008 | AJ11: 0 | AL11: 0 | AM11: 11 | AO11: Crossbow | AP11: Coat of Plates
B12: 2 | C12: 21 | D12: HobGoblin | E12: 5 | F12: 3 | G12: d6 / d4 | J12: 15 | K12: 15 | L12: 3/4 | M12: 1 | N12: 3/4 | O12: Boiled Leather | P12: 3 | Q12: Pierce | R12: Morning Star | S12: - | T12: - | U12: 21 | V12: 14 | W12: 5 | X12: 2 | Y12: 2 | Z12: 3 | AA12: -1 | AB12: -1 | AC12: 2 | AD12: 1 | AE12: 2 | AI12: 33.824 | AJ12: 0 | AL12: 1 | AM12: 14 | AO12: Battle-axe | AP12: Plate
B13: 3 | C13: 26 | D13: BugBear | E13: 8 | F13: 3 | G13: d8 / d6 | J13: 16 | K13: 14 | L13: 1/2 | M13: 1/2 | N13: 1/2 | O13: Scale (Iron) | P13: 3 | Q13: Pierce | R13: Morning Star | S13: - | T13: - | U13: 26 | V13: 16 | W13: 7 | X13: 3 | Y13: 3 | Z13: 4 | AA13: 2 | AB13: -1 | AC13: 1 | AD13: 2 | AE13: 1 | AI13: 64.3552 | AJ13: 0 | AL13: 9 | AM13: 30 | AO13: Battle-axe 2 hands | AP13: Hide
B14: 3 | C14: 20 | D14: Orc | E14: 6 | F14: 3 | G14: d8 / d6 | J14: 12 | K14: 15 | L14: 1/2 | M14: 1/2 | N14: 1/2 | O14: Scale (Iron) | P14: 3 | Q14: Chop | R14: Falchion | S14: - | T14: - | U14: 20 | V14: 14 | W14: 6 | X14: 2 | Y14: 3 | Z14: 3 | AA14: -2 | AB14: -1 | AC14: 1 | AD14: -1 | AE14: -1 | AI14: 44.352 | AJ14: 0 | AL14: 2 | AM14: 16 | AO14: Hand Axe | AP14: Thick Hide
B15: 3 | C15: 20 | D15: Orc - Archer | E15: 2 | F15: 2 | G15: d6 / d4 | J15: 13 | K15: 15 | L15: 1/2 | M15: 1/2 | N15: 1/2 | O15: Scale (Iron) | P15: 3 | Q15: Pierce | R15: Crossbow | S15: - | T15: - | U15: 20 | V15: 14 | W15: 6 | X15: 2 | Y15: 3 | Z15: 2 | AA15: -1 | AB15: -1 | AC15: 1 | AD15: -1 | AE15: -1 | AI15: 28.224 | AJ15: 0 | AL15: 3 | AM15: 18 | AO15: War Hammer | AP15: Scales
B16: 4 | C16: 36 | D16: Uruk-Hai | E16: 10 | F16: 4 | G16: 2d12 + d4 | J16: 14 | K16: 11 | L16: 1/4 | M16: 1/3 | N16: 1/2 | O16: Coat of Plates | P16: 0 | Q16: Slash | R16: Great Sword | S16: - | T16: - | U16: 36 | V16: 18 | W16: 7 | X16: 4 | Y16: 4 | Z16: 5 | AA16: 0 | AB16: 0 | AC16: 2 | AD16: -1 | AE16: 0 | AI16: 151.524 | AJ16: 0 | AL16: 4 | AM16: 20 | AO16: Club | AP16: Armoured scales
B17: 3 | C17: 20 | D17: Gnoll | E17: 6 | F17: 3 | G17: d8 / d6 | J17: 13 | K17: 15 | L17: 1/2 | M17: 1/2 | N17: 1/2 | O17: Scale (Iron) | P17: 3 | Q17: Slash | R17: Battle-axe | S17: - | T17: - | U17: 20 | V17: 14 | W17: 6 | X17: 2 | Y17: 3 | Z17: 3 | AA17: -1 | AB17: 0 | AC17: 1 | AD17: 0 | AE17: 0 | AI17: 44.352 | AJ17: 0 | AL17: 5 | AM17: 22 | AO17: Mace | AP17: Stone scales
B18: 4 | C18: 21 | D18: Gnoll leader | E18: 10 | F18: 3 | G18: 2d12 + d4 | J18: 13 | K18: 11 | L18: 1/4 | M18: 1/2 | N18: 3/4 | O18: Mail | P18: 0 | Q18: Slash | R18: Battle-axe 2 hands | S18: - | T18: - | U18: 21 | V18: 16 | W18: 7 | X18: 2 | Y18: 5 | Z18: 4 | AA18: -1 | AB18: 0 | AC18: 1 | AD18: 0 | AE18: 0 | AI18: 83.559 | AJ18: =AH19*AI19*VLOOKUP(AH19,Attackers,2,TRUE) -> 0 | AL18: 6 | AM18: 24 | AO18: Morning Star | AP18: Dragon Scales
B19: 4 | C19: 54 | D19: Ogre | E19: 13 | F19: 2 | G19: d10 / d8 | J19: 15 | K19: 9 | L19: 3/4 | M19: 3/4 | N19: 3/4 | O19: Hide | P19: 0 | Q19: Bludgeon | R19: Club | S19: - | T19: - | U19: 54 | V19: 26 | W19: 9 | X19: 5 | Y19: 3 | Z19: 7 | AA19: -2 | AB19: -1 | AC19: 4 | AD19: -2 | AE19: -1 | AI19: 142.884 | AJ19: =AH20*AI20*VLOOKUP(AH20,Attackers,2,TRUE) -> 0 | AL19: 8 | AM19: 28 | AO19: Morning Star-Flail | AP19: Bone
B20: 7 | C20: 120 | D20: Hill Giant | E20: 12 | F20: 6 | G20: d12 / d10 | J20: 15 | K20: 8 | L20: 1/2 | M20: 1/2 | N20: 1/2 | O20: Hide | P20: 0 | Q20: Bludgeon | R20: Club | S20: - | T20: - | U20: 120 | V20: 38 | W20: 15 | X20: 12 | Y20: 2 | Z20: 13 | AA20: -2 | AB20: 0 | AC20: 4 | AD20: -3 | AE20: -2 | AI20: 279.888 | AJ20: 0 | AL20: 10 | AM20: 32 | AO20: Spear
B21: 8 | C21: 138 | D21: Stone Giant | E21: 11 | F21: 6 | G21: 2d12+d2 | J21: 13 | K21: 7 | L21: 1/5 | M21: 1/4 | N21: 1/3 | O21: Thick Hide | P21: 0 | Q21: Bludgeon | R21: Club | S21: - | T21: - | U21: 138 | V21: 40 | W21: 16 | X21: 14 | Y21: 2 | Z21: 15 | AA21: -1 | AB21: 0 | AC21: 4 | AD21: -5 | AE21: -1 | AI21: 352.3968 | AJ21: 0 | AO21: Spear 2 hands
B22: 8 | C22: 129 | D22: Frost Giant | E22: 10 | F22: 7 | G22: 2d12 + d8/d4 | J22: 17 | K22: 6 | L22: 1/3 | M22: 1/3 | N22: 1/3 | O22: Hide | P22: 0 | Q22: Pierce | R22: Morning Star | S22: - | T22: - | U22: 129 | V22: 48 | W22: 21 | X22: 14 | Y22: 2 | Z22: 18 | AA22: 0 | AB22: 0 | AC22: 3 | AD22: -3 | AE22: -1 | AI22: 303.408 | AJ22: 0 | AO22: Dagger
B23: 9 | C23: 163 | D23: Fire Giant | E23: 11 | F23: 12 | G23: 2d12 + d10 / d8 | J23: 19 | K23: 7 | L23: 1/4 | M23: 1/4 | N23: 1/4 | O23: Scale (Iron) | P23: 0 | Q23: Slash | R23: Great Sword | S23: - | T23: - | U23: 163 | V23: 46 | W23: 18 | X23: 15 | Y23: 2 | Z23: 21 | AA23: 0 | AB23: 0 | AC23: 5 | AD23: -4 | AE23: -1 | AI23: 613.4016 | AJ23: 0 | AO23: Cutlass
A24: 2nd hit at -1 | B24: 7 | C24: 80 | D24: Ettin | E24: 13 | F24: 3 | G24: 2d12 + d4 | H24: 8 | J24: 21 | K24: 8 | L24: 1/2 | M24: 1/2 | N24: 1/2 | O24: Hide | P24: 0 | Q24: Pierce | R24: Morning Star | S24: Morning Star | T24: - | U24: 80 | V24: 28 | W24: 12 | X24: 10 | Y24: 3 | Z24: 10 | AA24: -1 | AB24: 0 | AC24: 2 | AD24: -4 | AE24: 4 | AI24: 239.904 | AJ24: 0 | AO24: Falchion
B25: 6 | C25: 87 | D25: Troll | E25: 5 | F25: 3 | G25: d10 / d8 | J25: 17 | K25: 9 | L25: 1/4 | M25: 1/3 | N25: 1/2 | O25: Thick Hide | P25: 0 | Q25: Bludgeon | R25: Thump | S25: - | T25: - | U25: 87 | V25: 34 | W25: 11 | X25: 7 | Y25: 4 | Z25: 8 | AA25: -2 | AB25: 0 | AC25: 6 | AD25: -2 | AE25: 1 | AI25: 148.77 | AJ25: 0 | AO25: Short sword
B26: 1 | C26: 13 | D26: Svart | E26: 2 | F26: 0 | G26: 2d4 | J26: 13 | K26: 14 | L26: 1 | M26: 1.5 | N26: 1.5 | O26: Leather | P26: 2 | Q26: Pierce | R26: Short sword | S26: - | T26: - | U26: 13 | V26: 12 | W26: 5 | X26: 1 | Y26: 1 | Z26: 0 | AA26: 0 | AB26: 1 | AC26: 1 | AD26: 2 | AE26: 0 | AI26: 12.467 | AJ26: 0 | AO26: Scimitar
B27: 3 | C27: 22 | D27: Svart - leader | E27: 4 | F27: 2 | G27: d8 / d6 | J27: 16 | K27: 15 | L27: 1 | M27: 1 | N27: 1 | O27: Padded | P27: 3 | Q27: Slash | R27: Arming Sword | S27: - | T27: - | U27: 22 | V27: 16 | W27: 6 | X27: 2 | Y27: 3 | Z27: 2 | AA27: 1 | AB27: 1 | AC27: 2 | AD27: 1 | AE27: 0 | AI27: 34.2144 | AJ27: 0 | AO27: Falchion
B28: 2 | C28: 13 | D28: Dark Creeper | E28: 4 | F28: 0 | G28: 2d4 | J28: 12 | K28: 14 | L28: 3/4 | M28: 1 | N28: 3/4 | O28: Boiled Leather | P28: 2 | Q28: Pierce | R28: Dagger | S28: - | T28: - | U28: 13 | V28: 11 | W28: 4.5 | X28: 1 | Y28: 2 | Z28: 0 | AA28: 1 | AB28: 0 | AC28: 1 | AD28: 2 | AE28: 0 | AI28: 17.667 | AJ28: 0 | AO28: Arming Sword
B29: 3 | C29: 25 | D29: Dark Stalker | E29: 5 | F29: 2 | G29: d8 / d4 | J29: 16 | K29: 15 | L29: 1 | M29: 1 | N29: 1 | O29: Padded | P29: 3 | Q29: Pierce | R29: Short sword | S29: - | T29: - | U29: 25 | V29: 14 | W29: 6 | X29: 3 | Y29: 3 | Z29: 2 | AA29: 1 | AB29: 1 | AC29: 1 | AD29: 2 | AE29: 0 | AI29: 40.8 | AJ29: 0 | AO29: Bastard Sword
B30: 7 | C30: 55 | D30: Shadow Knight | E30: 11 | F30: 4 | G30: 2d12+d2 | J30: 22 | K30: 15 | L30: 1/4 | M30: 1/3 | N30: 1/2 | O30: Coat of Plates | P30: 4 | Q30: Slash | R30: Arming Sword | S30: - | T30: - | U30: 55 | V30: 17 | W30: 6.5 | X30: 7 | Y30: 7 | Z30: 5 | AA30: -1 | AB30: 0 | AC30: 2 | AD30: 1 | AE30: 0 | AI30: 236.192 | AJ30: 0 | AO30: Great Sword
B31: 2 | C31: 22 | D31: Shade | E31: 3 | F31: 2 | G31: d8 / d4 | J31: 12 | K31: 12 | L31: 1 | M31: 1 | N31: 1 | O31: Padded | P31: 0 | Q31: Slash | R31: Arming Sword | S31: - | T31: - | U31: 22 | V31: 16 | W31: 6 | X31: 2 | Y31: 2 | Z31: 2 | AA31: 0 | AB31: 1 | AC31: 2 | AD31: 1 | AE31: 0 | AI31: 28.7232 | AJ31: 0 | AO31: Staff
B32: 3 | C32: 22 | D32: Shadow | E32: 5 | F32: 3 | G32: d4 | J32: 13 | K32: 12 | L32: 1 | M32: 1.5 | N32: 1.5 | O32: Leather | P32: 0 | Q32: Slash | R32: Claw | S32: - | T32: - | U32: 22 | V32: 12 | W32: 6 | X32: 3 | Y32: 2 | Z32: 3 | AA32: -1 | AB32: -1 | AC32: 0 | AD32: 3 | AE32: 0 | AI32: 28.13066667 | AJ32: 0 | AO32: Missile
B33: 7 | C33: 56 | D33: Shadow Demon | E33: 14 | F33: 12 | G33: 2d12 + d8/d4 | J33: 27 | K33: 10 | L33: 3/4 | M33: 3/4 | N33: 1/2 | O33: Scale (Leather) | P33: 0 | Q33: Slash | R33: Bastard Sword | S33: - | T33: - | U33: 56 | V33: =2*(W33+AC33) -> 20 | W33: 8 | X33: 7 | Y33: 7 | Z33: 15 | AA33: 2 | AB33: 1 | AC33: 2 | AD33: 2 | AE33: 2 | AI33: 248.5504 | AJ33: 0
B34: 28 | C34: 633 | D34: Shadow Dragon | E34: 7 | F34: 7 | G34: 2d12 + d8 / d6 | J34: 27 | K34: 6 | L34: 1/3 | M34: 1/3 | N34: 1/4 | O34: Scale (Leather) | P34: 0 | Q34: Slash | R34: Claw | S34: - | T34: - | U34: 633 | V34: 124 | W34: 55 | X34: 50 | Y34: 5 | Z34: 18 | AA34: 6 | AB34: 8 | AC34: 7 | AD34: 2 | AE34: 5 | AI34: 1256.8848 | AJ34: 0
B35: 2 | C35: 14 | D35: Lizardman | E35: 5 | F35: 4 | G35: d6 / d4 | J35: 20 | K35: 14 | L35: 1 | M35: 1.5 | N35: 1.5 | O35: Leather | P35: 2 | Q35: =VLOOKUP(R35,weapons,2, FALSE) -> Pierce | R35: Spear | S35: - | T35: - | U35: 14 | V35: =2*(W35+AC35) -> 14 | W35: 6 | X35: 1 | Y35: 3 | Z35: 4 | AA35: 1 | AB35: 0 | AC35: 1 | AD35: 2 | AE35: 1 | AI35: 20.45866667 | AJ35: 0
B36: 2 | C36: 11 | D36: Green Gremlins | E36: 3 | F36: 1 | G36: d3 | H36: -2 | I36: -2 | J36: 15 | K36: 17 | L36: 1 | M36: 1.5 | N36: 1.5 | O36: Leather | P36: 3 | Q36: =VLOOKUP(R36,weapons,2, FALSE) -> Slash | R36: Claw | S36: Claw | T36: Bite | U36: 11 | V36: =2*(W36+AC36) -> 8 | W36: 3 | X36: 1 | Y36: 3 | Z36: -1 | AA36: 0 | AB36: 0 | AC36: 1 | AD36: 2 | AE36: 2 | AI36: 12.056 | AJ36: =(5+F37)*(10+IF(AG37>0,L37,K37))*((10+G37+H37))*V37*(5+O37)/1000*VLOOKUP(AH37,Specials,3,FALSE)+VLOOKUP(AH37,Specials,2,FALSE) -> 
B37: 8 | C37: 132 | D37: Golem - Stone | E37: 3 | F37: 15 | G37: d12 / d10 | J37: 22 | K37: 8 | L37: 1/10 | M37: 1/10 | N37: 1/5 | O37: Stone scales | P37: 0 | Q37: =VLOOKUP(R37,weapons,2, FALSE) -> Bludgeon | R37: Thump | S37: - | T37: - | U37: 132 | V37: =2*(W37+AC37) -> 40 | W37: 15 | X37: 12 | Y37: 3 | Z37: 22 | AA37: -4 | AB37: -4 | AC37: 5 | AD37: -2 | AE37: -2 | AI37: 208.9472
B38: =VLOOKUP(X38,Save,2,FALSE) -> 3 | C38: 37 | D38: Slumper | E38: 8 | F38: -1 | G38: d10 / d6 | J38: 10 | K38: 10 | L38: 1/4 | M38: 1/3 | N38: 1/2 | O38: Thick Hide | Q38: =VLOOKUP(R38,weapons,2, FALSE) -> Bludgeon | R38: Club | S38: - | T38: - | U38: 37 | V38: =2*(W38+AC38) -> 20 | W38: 8 | X38: 4 | Y38: 4 | Z38: 2 | AA38: -2 | AB38: -2 | AC38: 2 | AD38: 0 | AE38: -2

Sheet Characters
A1: Special | B1: Save | C1: Stamina Points | E1: Atk | F1: Dmg bonus | G1: Damage Level | J1: Defence | L1: Absorb | O1: Armour | Q1: Attack | R1: Attack | S1: Attack 2 | U1: Health | W1: Size | AB1: Attributes | AF1: Flying | AG1: Ability
G2: Dmg | H2: Dmg | I2: Dmg | J2: Parry | K2: Range | L2: Cut | M2: Thrust | N2: Chop | O2: Body | P2: Shield | Q2: Type | R2: Weapon | U2: SP | V2: WP | W2: feet | X2: HD | Y2: Skill | Z2: Str | AA2: Int | AB2: Will | AC2: Con | AD2: Dex | AE2: Alert | AF2: Class | AI2: Exp | AJ2: total | AO2: Weapon | AP2: Body Armour | AQ2: Breast Plate
AO3: - | AP3: - | AQ3: -
A4: Fig / mage PP=10 | B4: =ROUNDUP((X4+Y4)/2,0) -> 3 | C4: =U4 -> 24 | D4: Falrik | E4: =Y4+ROUNDUP(AF4/2,0)+INT(+VLOOKUP(R4,weapons,3,FALSE)*MIN(Z4,8)+VLOOKUP(R4,weapons,4,FALSE)*(AD4))+VLOOKUP(W4,size,4) -> 5 | F4: =Z4-VLOOKUP($W4,size,3) -> 2 | G4: =VLOOKUP(VLOOKUP(R4,weapons,6,FALSE)+VLOOKUP($W4,size,3)+Y4-1,New_damage,2,FALSE) -> d8 / d6 | H4: =IF(S4<>" - ",VLOOKUP(S4,weapons,3,FALSE)+VLOOKUP($W4,size,3)," ") ->  | J4: =INT(VLOOKUP(O4,body_armour,5,FALSE)+Y4+AE4+P4+VLOOKUP(W4,size,6)+(Z4+AD4)/2+VLOOKUP(R4,weapons,5,FALSE)/2 ) -> 15 | K4: =12+P4+VLOOKUP(W4,size,5)+AF4*3 -> 14 | L4: =VLOOKUP(VLOOKUP($O4,body_armour,2,FALSE)+IF($W4>6,INT(VLOOKUP($W4,size,7)),0),Armour_translation,2,FALSE) -> 1/4 | M4: =VLOOKUP(VLOOKUP($O4,body_armour,3,FALSE)+IF($W4>6,INT(VLOOKUP($W4,size,7)),0),Armour_translation,2,FALSE) -> 1/2 | N4: =VLOOKUP(VLOOKUP($O4,body_armour,4,FALSE)+IF($W4>6,INT(VLOOKUP($W4,size,7)),0),Armour_translation,2,FALSE) -> 3/4 | O4: Mail Hauberk | P4: 2 | Q4: =VLOOKUP(R4,weapons,2, FALSE) -> Slash | R4: Arming Sword | S4: - | T4: - | U4: =INT(W4+X4*(4.5+AC4))+3 -> 24 | V4: =2*(W4+AC4) -> 12 | W4: 5 | X4: 3 | Y4: 3 | Z4: 2 | AA4: 3 | AB4: -1 | AC4: 1 | AD4: 3 | AE4: 1 | AI4: =(5+E4)*(10+IF(AF4>0,M4,L4))*((10+F4+I4))*U4*(5+N4)/1000*VLOOKUP(AG4,Specials,3,FALSE)+VLOOKUP(AG4,Specials,2,FALSE) ->  | AJ4: =AH4*AI4*VLOOKUP(AH4,Attackers,2,TRUE) ->  | AL4: 7 | AM4: 26 | AO4: Claw | AP4: Leather | AQ4: Leather
A5: Priest PP=7 | B5: 1 | C5: =U5 -> 18 | D5: Gladariaa | E5: 1 | F5: 0 | G5: d4 | J5: 9 | K5: 12 | L5: 1 | M5: 1 | N5: 3/4 | O5: Scale (Leather) | P5: 0 | Q5: Bludgeon | R5: Staff | S5: - | T5: - | U5: =INT(W5+X5*(4.5+AC5))+3 -> 18 | V5: 12 | W5: 6 | X5: 2 | Y5: 0 | Z5: 0 | AA5: 1 | AB5: 1 | AC5: 0 | AD5: 1 | AE5: 1 | AL5: -3 | AM5: 4 | AO5: Thump | AP5: Padded | AQ5: Metal
A6: Priest PP=4 | B6: 1 | C6: 13 | D6: Finbal | E6: 1 | F6: 1 | G6: d8 / d4 | J6: 10 | K6: 13 | L6: 3/4 | M6: 1 | N6: 3/4 | O6: Boiled Leather | P6: 1 | Q6: Slash | R6: Scimitar | S6: - | T6: - | U6: 13 | V6: 12 | W6: 6 | X6: 1 | Y6: 1 | Z6: 1 | AA6: -1 | AB6: 1 | AC6: 0 | AD6: 0 | AE6: 0 | AL6: -2 | AM6: 6 | AO6: Bite | AP6: Scale (Leather)
A7: Fighter | B7: 2 | C7: 20 | D7: Vorgus | E7: 3 | F7: 2 | G7: d10 / d6 | J7: 11 | K7: 13 | L7: 1/4 | M7: 1/2 | N7: 3/4 | O7: Mail Hauberk | P7: 1 | Q7: Slash | R7: Bastard Sword | S7: - | T7: - | U7: 20 | V7: 14 | W7: 6 | X7: 2 | Y7: 2 | Z7: 2 | AA7: -1 | AB7: -1 | AC7: 1 | AD7: 0 | AE7: 0 | AL7: -3 | AM7: 4 | AO7: Cleaver | AP7: Boiled Leather
A8: Fighter | B8: 1 | C8: 13 | D8: Losogon | E8: 1 | F8: 1 | G8: d6 / d4 | J8: 14 | K8: 15 | L8: 1 | M8: 1 | N8: 1 | O8: Padded | P8: 3 | Q8: Slash | R8: Arming Sword | S8: - | T8: - | U8: 13 | V8: 12 | W8: 6 | X8: 1 | Y8: 1 | Z8: 1 | AA8: -1 | AB8: 1 | AC8: 0 | AD8: 0 | AE8: 1 | AL8: -3 | AM8: 4 | AO8: Bow - Short | AP8: Scale (Iron)
A9: Fighter | B9: 1 | C9: 14 | D9: Anabat | E9: 2 | F9: 1 | G9: d10 / d8 | J9: 11 | K9: 12 | L9: 1 | M9: 1 | N9: 1 | O9: Padded | P9: 0 | Q9: Slash | R9: Great Sword | S9: - | T9: - | U9: 14 | V9: 14 | W9: 6 | X9: 1 | Y9: 1 | Z9: 1 | AA9: 0 | AB9: 0 | AC9: 1 | AD9: 1 | AE9: 0 | AL9: -3 | AM9: 4 | AO9: Bow - Long | AP9: Mail Hauberk
A10: Fighter | B10: 1 | C10: 14 | D10: Rish | E10: 2 | F10: 2 | G10: d6 / d4 | J10: 11 | K10: 13 | L10: 1 | M10: 1 | N10: 1 | O10: Padded | P10: 1 | Q10: Slash | R10: Arming Sword | S10: - | T10: - | U10: 14 | V10: 14 | W10: 6 | X10: 1 | Y10: 1 | Z10: 2 | AA10: 2 | AB10: -1 | AC10: 1 | AD10: 0 | AE10: -1 | AL10: -1 | AM10: 8 | AO10: Crossbow | AP10: Mail
A11: Thief | B11: 4 | C11: 19 | D11: Venerman | E11: 4 | F11: 1 | G11: d8 / d4 | J11: 13 | K11: 14 | L11: 3/4 | M11: 1 | N11: 3/4 | O11: Boiled Leather | P11: 2 | Q11: Bludgeon | R11: Mace | S11: - | T11: - | U11: 19 | V11: 8 | W11: 6 | X11: 4 | Y11: 3 | Z11: 1 | AA11: -2 | AB11: 1 | AC11: -2 | AD11: 2 | AE11: 1 | AL11: 0 | AM11: 11 | AO11: Battle-axe | AP11: Coat of Plates
A12: Thief | B12: 2 | C12: 20 | D12: Luge | E12: 0 | F12: -2 | G12: d6 / d4 | J12: 10 | K12: 14 | L12: 3/4 | M12: 1 | N12: 3/4 | O12: Boiled Leather | P12: 2 | Q12: Slash | R12: Arming Sword | S12: - | T12: - | U12: 20 | V12: 14 | W12: 6 | X12: 2 | Y12: 1 | Z12: -2 | AA12: 0 | AB12: -1 | AC12: 1 | AD12: 0 | AE12: 0 | AL12: 1 | AM12: 14 | AO12: Battle-axe 2 hands | AP12: Plate
A13: Thief | B13: 3 | C13: 25 | D13: Argun | E13: 3 | F13: 2 | G13: d8 / d4 | J13: 14 | K13: 15 | L13: 3/4 | M13: 1 | N13: 3/4 | O13: Boiled Leather | P13: 3 | Q13: Slash | R13: Arming Sword | S13: - | T13: - | U13: 25 | V13: 14 | W13: 6 | X13: 3 | Y13: 2 | Z13: 2 | AA13: -1 | AB13: 0 | AC13: 1 | AD13: 1 | AE13: 0 | AL13: 9 | AM13: 30 | AO13: Hand Axe | AP13: Hide
A14: Thief | B14: 2 | C14: 22 | D14: Pipluk | E14: 1 | F14: 0 | G14: d6 / d4 | J14: 13 | K14: 14 | L14: 3/4 | M14: 1 | N14: 3/4 | O14: Boiled Leather | P14: 2 | Q14: Slash | R14: Arming Sword | S14: - | T14: - | U14: 22 | V14: 12 | W14: 6 | X14: 3 | Y14: 1 | Z14: 0 | AA14: 1 | AB14: 0 | AC14: 0 | AD14: 0 | AE14: 2 | AL14: 2 | AM14: 16 | AO14: War Hammer | AP14: Thick Hide
B15: 1 | C15: 13 | D15: Cack-hand | E15: 1 | F15: -2 | G15: d4 | J15: 9 | K15: 12 | L15: 1 | M15: 1.5 | N15: 1.5 | O15: Leather | Q15: Pierce | R15: Dagger | S15: - | T15: - | U15: 13 | V15: 12 | W15: 6 | X15: 1 | Y15: 1 | Z15: -2 | AA15: -1 | AB15: 0 | AC15: 0 | AD15: 0 | AE15: 0 | AL15: 3 | AM15: 18 | AO15: Club | AP15: Scales
A16: Mage PP=5 | B16: 1 | C16: 11 | D16: M'Dok | E16: 1 | F16: 0 | G16: 2d4 | J16: 11 | K16: 14 | L16: 1 | M16: 1.5 | N16: 1.5 | O16: Scales | P16: 0 | Q16: Pierce | R16: Spear 2 hands | S16: - | T16: - | U16: 11 | V16: 8 | W16: 3 | X16: 1 | Y16: 1 | Z16: -2 | AA16: 1 | AB16: 0 | AC16: 1 | AD16: 2 | AE16: 0 | AG16: Mage 1 | AL16: 4 | AM16: 20 | AO16: Mace | AP16: Armoured scales
A17: Priest PP=10 | B17: 3 | C17: 20 | D17: Jakk | E17: 4 | F17: 1 | G17: d10 / d6 | J17: 14 | K17: 15 | L17: 1/4 | M17: 1/2 | N17: 3/4 | O17: Mail Hauberk | P17: 3 | Q17: Slash | R17: Arming Sword | S17: - | T17: - | U17: 20 | V17: =2*(W17+AC17) -> 14 | W17: 6 | X17: 2 | Y17: 4 | Z17: 1 | AA17: -1 | AB17: 3 | AC17: 1 | AD17: -1 | AE17: 0 | AG17: Priest 2 | AL17: 5 | AM17: 22 | AO17: Morning Star | AP17: Stone scales
A18: Fighter | B18: 2 | C18: 24 | D18: Vivlok | E18: 3 | F18: 1 | G18: d12 / d10 | J18: 10 | K18: 12 | L18: 1/4 | M18: 1/2 | N18: 3/4 | O18: Mail Hauberk | P18: 0 | Q18: Slash | R18: Great Sword | S18: - | T18: - | U18: 24 | V18: 18 | W18: 6 | X18: 2 | Y18: 2 | Z18: 1 | AA18: 0 | AB18: -1 | AC18: 3 | AD18: 0 | AE18: 0 | AL18: 6 | AM18: 24 | AO18: Morning Star-Flail | AP18: Dragon Scales
A19: Fighter | B19: 1 | C19: 14 | D19: Trob | E19: 1 | F19: 0 | G19: d6 / d4 | J19: 12 | K19: 15 | L19: 3/4 | M19: 1 | N19: 3/4 | O19: Boiled Leather | P19: 3 | Q19: Slash | R19: Arming Sword | S19: - | T19: - | U19: 14 | V19: 14 | W19: 6 | X19: 1 | Y19: 1 | Z19: 0 | AA19: -1 | AB19: 0 | AC19: 1 | AD19: 1 | AE19: 0 | AL19: 8 | AM19: 28 | AO19: Spear | AP19: Bone
A20: Mage PP=12 | B20: 2 | C20: 18 | D20: Dark Odo | E20: 2 | F20: 0 | G20: 2d4 | H20: =IF(S20<>" - ",VLOOKUP(S20,weapons,3,FALSE)+VLOOKUP($W20,size,3)," ") ->  | J20: 11 | K20: 12 | L20: 1 | M20: 1.5 | N20: 1.5 | O20: Leather | P20: 0 | Q20: Bludgeon | R20: Staff | S20: - | T20: - | U20: 18 | V20: 12 | W20: 6 | X20: 2 | Y20: 1 | Z20: 0 | AA20: 2 | AB20: 0 | AC20: 0 | AD20: 1 | AE20: 0 | AG20: Mage 2 | AL20: 10 | AM20: 32 | AO20: Spear 2 hands
A21: Cleric PP=7 | B21: 3 | C21: 22 | D21: Mudras | E21: 3 | F21: 1 | G21: d6 / d4 | J21: 10 | K21: 14 | L21: 3/4 | M21: 1 | N21: 3/4 | O21: Boiled Leather | P21: 2 | Q21: Bludgeon | R21: Mace | S21: - | T21: - | U21: 22 | V21: =2*(W21+AC21) -> 12 | W21: 6 | X21: 3 | Y21: 2 | Z21: 1 | AA21: -1 | AB21: 3 | AC21: 0 | AD21: 0 | AE21: 0 | AG21: Priest 1 | AO21: Dagger
B22: 3 | C22: 19 | D22: Runas | E22: 4 | F22: 2 | G22: d6 / d4 | J22: 12 | K22: 15 | L22: 1/4 | M22: 1/2 | N22: 3/4 | O22: Mail Hauberk | P22: 3 | Q22: Pierce | R22: Morning Star | S22: - | T22: - | U22: 19 | V22: 10 | W22: 6 | X22: 3 | Y22: 2 | Z22: 2 | AA22: 0 | AB22: 0 | AC22: -1 | AD22: 0 | AE22: 1 | AO22: Cutlass
B23: 4 | C23: 23 | D23: Erig | E23: 4 | F23: 0 | G23: d10 / d6 | J23: 16 | K23: 15 | L23: 3/4 | M23: 1 | N23: 3/4 | O23: Boiled Leather | P23: 3 | Q23: Slash | R23: Arming Sword | S23: - | T23: - | U23: 23 | V23: 10 | W23: 6 | X23: 4 | Y23: 4 | Z23: 0 | AA23: 2 | AB23: 1 | AC23: -1 | AD23: 1 | AE23: 1 | AO23: Falchion
B24: 2 | C24: 20 | D24: Orwen | E24: 2 | F24: 1 | G24: 2d4 | J24: 13 | K24: 15 | L24: 3/4 | M24: 1 | N24: 3/4 | O24: Boiled Leather | P24: 3 | Q24: Pierce | R24: Short sword | S24: - | T24: - | U24: 20 | V24: 14 | W24: 6 | X24: 2 | Y24: 1 | Z24: 1 | AA24: -1 | AB24: -1 | AC24: 1 | AD24: 1 | AE24: 1 | AO24: Short sword
B25: 3 | C25: 25 | D25: Jessop | E25: 3 | F25: 2 | G25: d8 / d6 | J25: 15 | K25: 15 | L25: 1 | M25: 1 | N25: 3/4 | O25: Scale (Leather) | P25: 3 | Q25: Slash | R25: Arming Sword | S25: - | T25: - | U25: 25 | V25: 14 | W25: 6 | X25: 3 | Y25: 3 | Z25: 2 | AA25: 0 | AB25: -1 | AC25: 1 | AD25: -1 | AE25: 1 | AO25: Scimitar
B26: 3 | C26: 25 | D26: Tuxarra | E26: 4 | F26: 2 | G26: d8 / d6 | J26: 16 | K26: 15 | L26: 1 | M26: 1 | N26: 3/4 | O26: Scale (Leather) | P26: 3 | Q26: Slash | R26: Arming Sword | S26: - | T26: - | U26: 25 | V26: 14 | W26: 6 | X26: 3 | Y26: 3 | Z26: 2 | AA26: -1 | AB26: -1 | AC26: 1 | AD26: 0 | AE26: 1 | AO26: Arming Sword
A27: Priest PP=10 | B27: 3 | C27: 25 | D27: Diker Thane | E27: 2 | F27: 0 | G27: d6 / d4 | J27: 10 | K27: 15 | L27: 1/2 | M27: 1/2 | N27: 1/2 | O27: Scale (Iron) | P27: 3 | Q27: Bludgeon | R27: Mace | S27: - | T27: - | U27: 25 | V27: 14 | W27: 6 | X27: 3 | Y27: 2 | Z27: 0 | AA27: 1 | AB27: 2 | AC27: 1 | AD27: 0 | AE27: 0 | AG27: Priest 3 | AO27: Bastard Sword
A28: Necro PP=10 | B28: 2 | C28: 18 | D28: Sega Thane | E28: 3 | F28: 1 | G28: d12 / d10 | J28: 13 | K28: 15 | L28: 1/4 | M28: 1/3 | N28: 1/2 | O28: Coat of Plates | P28: 3 | Q28: Slash | R28: Great Sword | S28: - | T28: - | U28: 18 | V28: 12 | W28: 6 | X28: 2 | Y28: 2 | Z28: 1 | AA28: 2 | AB28: 1 | AC28: 0 | AD28: 0 | AE28: 0 | AG28: Priest 3 | AO28: Great Sword
B29: 3 | C29: 22 | E29: 2 | F29: 0 | G29: d8 / d4 | J29: 13 | K29: 15 | L29: 3/4 | M29: 1 | N29: 3/4 | O29: Boiled Leather | P29: 3 | Q29: Slash | R29: Arming Sword | S29: - | T29: - | U29: 22 | V29: 12 | W29: 6 | X29: 3 | Y29: 2 | Z29: 0 | AA29: 0 | AB29: 0 | AC29: 0 | AD29: 0 | AE29: 0 | AO29: Staff
B30: 2 | C30: 14 | D30: Diker's men | E30: 3 | F30: 1 | G30: d6 / d4 | J30: 11 | K30: 15 | L30: 1 | M30: 1 | N30: 3/4 | O30: Scale (Leather) | P30: 3 | Q30: Bludgeon | R30: Mace | S30: - | T30: - | U30: 14 | V30: 14 | W30: 6 | X30: 1 | Y30: 2 | Z30: 1 | AA30: 0 | AB30: 0 | AC30: 1 | AD30: 0 | AE30: 0 | AO30: Missile
B31: 4 | C31: 28 | D31: Diker's 2IC | E31: 6 | F31: 2 | G31: d8 / d6 | J31: 14 | K31: 15 | L31: 1/4 | M31: 1/2 | N31: 3/4 | O31: Mail Hauberk | P31: 3 | Q31: Bludgeon | R31: Mace | S31: - | T31: - | U31: 28 | V31: =2*(W31+AC31) -> 16 | W31: 6 | X31: 3 | Y31: 4 | Z31: 2 | AA31: -2 | AB31: -1 | AC31: 2 | AD31: 1 | AE31: 1
A32: Necro | B32: =ROUNDUP((X32+Y32)/2,0) -> 2 | C32: 18 | D32: Svlad | E32: 2 | F32: -2 | G32: d4 | J32: 11 | K32: 12 | L32: 1 | M32: 1.5 | N32: 1.5 | O32: Leather | Q32: =VLOOKUP(R32,weapons,2, FALSE) -> Pierce | R32: Dagger | U32: 18 | V32: 20 | W32: 6 | X32: 2 | Y32: 1 | Z32: -2 | AA32: 3 | AB32: 0 | AC32: 0 | AD32: 1 | AE32: 2 | AG32: Priest 3
A33: Necro PP=12 | B33: =VLOOKUP(X33,Save,2,FALSE) -> 3 | C33: 27 | D33: Torak | E33: 4 | F33: 1 | G33: d8 / d4 | J33: 13 | K33: 14 | L33: 1/4 | M33: 1/3 | N33: 1/2 | O33: Coat of Plates | P33: 2 | Q33: Bludgeon | R33: Mace | S33: - | T33: - | U33: =INT(W33+X33*(4.5+AC33))+3 -> 27 | V33: =2*(W33+AC33) -> 12 | W33: 6 | X33: 4 | Y33: 3 | Z33: 1 | AA33: 2 | AB33: 2 | AC33: 0 | AD33: 1 | AE33: 2 | AG33: Priest 4
B34: =VLOOKUP(X34,Save,2,FALSE) -> 2 | C34: =U34 -> 22 | D34: Snablet | E34: 1 | F34: -1 | G34: d4 | J34: 11 | K34: 12 | L34: 1 | M34: 1.5 | N34: 1.5 | O34: Leather | P34: 0 | Q34: Bludgeon | R34: Club | S34: - | T34: - | U34: =INT(W34+X34*(4.5+AC34))+3 -> 22 | V34: =2*(W34+AC34) -> 12 | W34: 6 | X34: 3 | Y34: 2 | Z34: -1 | AA34: 2 | AB34: 1 | AC34: 0 | AD34: 1 | AE34: 2 | AG34: Mage 2
B35: =VLOOKUP(X35,Save,2,FALSE) -> 3 | C35: =U35 -> 23 | D35: Punketah | E35: 1 | F35: -1 | G35: d4 | J35: 10 | K35: 12 | L35: 1 | M35: 1 | N35: 3/4 | O35: Scale (Leather) | P35: 0 | Q35: Bludgeon | R35: Club | S35: - | T35: - | U35: =INT(W35+X35*(4.5+AC35))+3 -> 23 | V35: =2*(W35+AC35) -> 10 | W35: 6 | X35: 4 | Y35: 2 | Z35: -1 | AA35: 3 | AB35: 0 | AC35: -1 | AD35: 2 | AE35: 2 | AG35: Mage 3
A36: Mage PP=7 | B36: =VLOOKUP(X36,Save,2,FALSE) -> 2 | C36: =U36 -> 19 | D36: Belreeve | E36: 3 | F36: -1 | G36: 2d4 | J36: 13 | K36: 12 | L36: 2 | M36: 2 | N36: 2 | O36: - | P36: 0 | Q36: Bludgeon | R36: Staff | S36: - | T36: - | U36: =INT(W36+X36*(4.5+AC36))+3 -> 19 | V36: =2*(W36+AC36) -> 10 | W36: 6 | X36: 3 | Y36: 1 | Z36: -1 | AA36: 2 | AB36: 1 | AC36: -1 | AD36: 2 | AE36: 1 | AG36: Mage 2
D37: Ned | E37: =Y37+ROUNDUP(AF37/2,0)+INT(+VLOOKUP(R37,weapons,3,FALSE)*MIN(Z37,8)+VLOOKUP(R37,weapons,4,FALSE)*(AD37))+VLOOKUP(W37,size,4) -> 2 | F37: =Z37-VLOOKUP($W37,size,3) -> 0 | G37: =VLOOKUP(VLOOKUP(R37,weapons,6,FALSE)+VLOOKUP($W37,size,3)+Y37-1,New_damage,2,FALSE) -> d4 | H37: =IF(S37<>" - ",VLOOKUP(S37,weapons,3,FALSE)+VLOOKUP($W37,size,3)," ") ->  | I37: =IF(T37<>" - ",VLOOKUP(T37,weapons,3,FALSE)+VLOOKUP($W37,size,3)," ") ->  | J37: =INT(VLOOKUP(O37,body_armour,5,FALSE)+Y37+AE37+P37+VLOOKUP(W37,size,6)+(Z37+AD37)/2+VLOOKUP(R37,weapons,5,FALSE)/2 ) -> 13 | K37: =12+P37+VLOOKUP(W37,size,5)+AF37*3 -> 12 | L37: 2 | M37: 2 | N37: 2 | O37: - | P37: 0 | Q37: Bludgeon | R37: Club | S37: - | T37: - | U37: =INT(W37+X37*(4.5+AC37))+3 -> 25 | V37: =2*(W37+AC37) -> 14 | W37: 6 | X37: 3 | Y37: 2 | Z37: 0 | AA37: -1 | AB37: 0 | AC37: 1 | AD37: 2 | AE37: 2
F38: 4 | K38: 17

Sheet Undead
A1: Special | B1: Save | C1: Stamina Points | E1: Atk | F1: Dmg bonus | G1: Damage Level | J1: Defence | L1: Absorb | O1: Armour | Q1: Attack | R1: Attack | S1: Attack 2 | T1: Attack 3 | U1: Health | W1: Size | AB1: Attributes | AF1: Flying | AG1: Ability
G2: Dmg | H2: Dmg | I2: Dmg | J2: Parry | K2: Range | L2: Cut | M2: Thrust | N2: Chop | O2: Body | P2: Shield | Q2: Type | R2: Weapon | S2: Weapon | T2: Weapon | U2: SP | V2: WP | W2: feet | X2: HD | Y2: Skill | Z2: Str | AA2: Int | AB2: Will | AC2: Con | AD2: Dex | AE2: Alert | AF2: Class | AI2: Exp | AJ2: total | AL2: Attributes | AO2: Weapon | AP2: Body Armour | AQ2: Breast Plate
AL3: New | AM3: Old | AO3: - | AP3: - | AQ3: -
B4: =ROUNDUP((X4+Y4)/2,0) -> 2 | C4: =U4 -> 14 | D4: Skeleton | E4: =Y4+ROUNDUP(AF4/2,0)+INT(+VLOOKUP(R4,weapons,3,FALSE)*MIN(Z4,8)+VLOOKUP(R4,weapons,4,FALSE)*(AD4))+VLOOKUP(W4,size,4) -> 3 | F4: =Z4-VLOOKUP($W4,size,3) -> 0 | G4: =VLOOKUP(VLOOKUP(R4,weapons,6,FALSE)+VLOOKUP($W4,size,3)+Y4-1,New_damage,2,FALSE) -> 2d4 | H4: =IF(S4<>" - ",VLOOKUP(S4,weapons,3,FALSE)+VLOOKUP($W4,size,3)," ") ->  | J4: =INT(VLOOKUP(O4,body_armour,5,FALSE)+Y4+AE4+P4+VLOOKUP(W4,size,6)+(Z4+AD4)/2+VLOOKUP(R4,weapons,5,FALSE)/2 ) -> 15 | K4: =12+P4+VLOOKUP(W4,size,5)+AF4*3 -> 14 | L4: =VLOOKUP(VLOOKUP($O4,body_armour,2,FALSE)+IF($W4>6,INT(VLOOKUP($W4,size,7)),0),Armour_translation,2,FALSE) -> 2 | M4: =VLOOKUP(VLOOKUP($O4,body_armour,3,FALSE)+IF($W4>6,INT(VLOOKUP($W4,size,7)),0),Armour_translation,2,FALSE) -> 2 | N4: =VLOOKUP(VLOOKUP($O4,body_armour,4,FALSE)+IF($W4>6,INT(VLOOKUP($W4,size,7)),0),Armour_translation,2,FALSE) -> 2 | O4: - | P4: 2 | Q4: =VLOOKUP(R4,weapons,2, FALSE) -> Chop | R4: Cleaver | S4: - | T4: - | U4: =INT(W4+X4*(4.5+AC4))+3 -> 14 | V4: =2*(W4+AC4) -> 14 | W4: 6 | X4: 1 | Y4: 2 | Z4: 0 | AA4: =--2 -> 2 | AB4: 0 | AC4: 1 | AD4: 2 | AE4: 0 | AI4: =(5+E4)*(10+IF(AF4>0,M4,L4))*((10+F4+G4))*U4*(5+N4)/1000*VLOOKUP(AG4,Specials,3,FALSE)+VLOOKUP(AG4,Specials,2,FALSE) ->  | AJ4: =AH4*AI4*VLOOKUP(AH4,Attackers,2,TRUE) ->  | AL4: -3 | AM4: 4 | AO4: Claw | AP4: Leather | AQ4: Leather
B5: 2 | C5: =U5 -> 14 | D5: Skeleton - warrior | E5: 4 | F5: 2 | G5: d8 / d4 | J5: 13 | K5: 14 | L5: 1/2 | M5: 1/2 | N5: 1/2 | O5: Scale (Iron) | P5: 2 | Q5: =VLOOKUP(R5,weapons,2, FALSE) -> Slash | R5: Arming Sword | S5: - | T5: - | U5: =INT(W5+X5*(4.5+AC5))+3 -> 14 | V5: =2*(W5+AC5) -> 14 | W5: 6 | X5: 1 | Y5: 2 | Z5: 2 | AA5: =--2 -> 2 | AB5: 0 | AC5: 1 | AD5: 2 | AE5: 0 | AL5: -3 | AM5: 4 | AO5: Claw | AP5: Leather | AQ5: Leather
B6: 2 | C6: 22 | D6: Zombie | E6: 0 | F6: 2 | G6: d4 | J6: 7 | K6: 12 | L6: 1 | M6: 1 | N6: 1 | O6: Hide | P6: 0 | Q6: Chop | R6: Cleaver | S6: - | T6: - | U6: =INT(W6+X6*(4.5+AC6))+3 -> 22 | V6: 16 | W6: 6 | X6: 2 | Y6: 1 | Z6: 2 | AA6: -3 | AB6: -2 | AC6: 2 | AD6: -3 | AE6: -2 | AL6: -2 | AM6: 6 | AO6: Thump | AP6: Padded | AQ6: Metal
A7: Paralyse | B7: 3 | C7: 20 | D7: Ghoul | E7: 5 | F7: 2 | G7: d6 / d4 | H7: 0 | I7: 0 | J7: 13 | K7: 12 | L7: 3/4 | M7: 1 | N7: 3/4 | O7: Boiled Leather | P7: 0 | Q7: Slash | R7: Claw | S7: Claw | T7: Bite | U7: 20 | V7: 14 | W7: 6 | X7: 2 | Y7: 4 | Z7: 2 | AA7: -1 | AB7: -1 | AC7: 1 | AD7: 1 | AE7: 1 | AG7: paralysis | AL7: -1 | AM7: 8 | AO7: Bite | AP7: Scale (Leather)
A8: Lose con/str | B8: 4 | C8: 35 | D8: Wight | E8: 5 | F8: 2 | G8: d6 / d4 | J8: 14 | K8: 12 | L8: 1 | M8: 1 | N8: 1 | O8: Hide | P8: 0 | Q8: Slash | R8: Claw | S8: - | T8: - | U8: 35 | V8: 16 | W8: 6 | X8: 4 | Y8: 4 | Z8: 2 | AA8: 0 | AB8: 0 | AC8: 2 | AD8: 1 | AE8: 0 | AL8: 0 | AM8: 11 | AO8: Hug | AP8: Boiled Leather
A9: Paralyse | B9: 3 | C9: 35 | D9: Ghast | E9: 2 | F9: 2 | G9: d4 | H9: 0 | I9: 0 | J9: 11 | K9: 12 | L9: 1 | M9: 1 | N9: 1 | O9: Hide | P9: 0 | Q9: Slash | R9: Claw | S9: Claw | T9: Bite | U9: 35 | V9: 16 | W9: 6 | X9: 4 | Y9: 2 | Z9: 2 | AA9: 1 | AB9: 0 | AC9: 2 | AD9: 0 | AE9: 0 | AG9: Paralysis | AL9: 1 | AM9: 14 | AO9: Cleaver | AP9: Scale (Iron)
B10: 5 | C10: 31 | D10: Swordwraith | E10: 7 | F10: 2 | G10: d10 / d8 | J10: 19 | K10: 12 | L10: 2 | M10: 2 | N10: 2 | O10: - | P10: 0 | Q10: Slash | R10: Arming Sword | S10: - | T10: - | U10: 31 | V10: 12 | W10: 6 | X10: 5 | Y10: 5 | Z10: 2 | AA10: 1 | AB10: 0 | AC10: 0 | AD10: 2 | AE10: 1 | AL10: 2 | AM10: 16 | AO10: Bow - Short | AP10: Mail Hauberk
A11: Rotting disease | B11: 5 | C11: 55 | D11: Mummy | E11: 3 | F11: 3 | G11: 2d4 | H11: 1 | J11: 12 | K11: 11 | L11: 1 | M11: 1 | N11: 3/4 | O11: Scale (Leather) | P11: 0 | Q11: Bludgeon | R11: Thump | S11: Thump | T11: - | U11: 55 | V11: 20 | W11: 7 | X11: 6 | Y11: 3 | Z11: 4 | AA11: 0 | AB11: 0 | AC11: 3 | AD11: -1 | AE11: 0 | AG11: Disease | AL11: 3 | AM11: 18 | AO11: Bow - Long | AP11: Mail
A12: Lose con/str | B12: 5 | C12: 47 | D12: Spectre | E12: 5 | F12: 0 | G12: 2d4 | J12: 13 | K12: 12 | L12: 2 | M12: 2 | N12: 2 | O12: - | P12: 0 | Q12: Slash | R12: Claw | S12: - | T12: - | U12: 47 | V12: 14 | W12: 6 | X12: 7 | Y12: 3 | Z12: 0 | AA12: 1 | AB12: 0 | AC12: 1 | AD12: 2 | AE12: 0 | AL12: 4 | AM12: 20 | AO12: Crossbow | AP12: Coat of Plates
A13: Lose con/str | B13: 7 | C13: 61 | D13: Vampire | E13: 10 | F13: 5 | G13: d8 / d6 | J13: 23 | K13: 12 | L13: 2 | M13: 2 | N13: 2 | O13: - | P13: 0 | Q13: Slash | R13: Claw | S13: - | T13: - | U13: 61 | V13: 16 | W13: 6 | X13: 8 | Y13: 6 | Z13: 5 | AA13: 3 | AB13: 2 | AC13: 2 | AD13: 4 | AE13: 3 | AL13: 5 | AM13: 22 | AO13: Battle-axe | AP13: Plate
B14: 8 | C14: 64 | D14: Ghost | E14: 7 | F14: 0 | G14: d8 / d4 | J14: 15 | K14: 12 | L14: 2 | M14: 2 | N14: 2 | O14: - | P14: 0 | Q14: Slash | R14: Claw | S14: - | T14: - | U14: 64 | V14: 14 | W14: 6 | X14: 10 | Y14: 5 | Z14: 0 | AA14: 0 | AB14: 0 | AC14: 1 | AD14: 2 | AE14: 0 | AL14: 6 | AM14: 24 | AO14: Battle-axe 2 hands | AP14: Hide
B15: 2 | C15: 19 | D15: Zombie-kobold | E15: -4 | F15: 2 | G15: 2d4 | J15: 7 | K15: 14 | L15: 2 | M15: 2 | N15: 2 | O15: - | P15: 0 | Q15: Pierce | R15: Spear 2 hands | S15: - | T15: - | U15: 19 | V15: =2*(W15+AC15) -> 10 | W15: 3 | X15: 2 | Y15: 1 | Z15: 0 | AA15: -2 | AB15: -2 | AC15: 2 | AD15: -3 | AE15: -2 | AL15: 7 | AM15: 26 | AO15: Hand Axe | AP15: Thick Hide
A16: Paralyse | B16: 2 | C16: 22 | D16: Necrophidius | E16: 3 | F16: 1 | G16: 2d4 | J16: 14 | K16: 13 | L16: 1/4 | M16: 1/10 | N16: 1/2 | O16: Bone | P16: 1 | Q16: Pierce | R16: Bite | S16: - | T16: - | U16: 22 | V16: =2*(W16+AC16) -> 16 | W16: 6 | X16: 2 | Y16: 2 | Z16: 1 | AA16: -2 | AB16: 0 | AC16: 2 | AD16: 1 | AE16: 2 | AG16: Paralysis | AL16: 8 | AM16: 28 | AO16: War Hammer | AP16: Scales
B17: 2 | C17: 16 | D17: Skeleton Warhorse | E17: 3 | F17: -1 | G17: d6 / d4 | H17: 3 | I17: 3 | J17: 11 | K17: 10 | L17: 1/5 | N17: 1/3 | O17: Bone | P17: 0 | Q17: =VLOOKUP(R17,weapons,2, FALSE) -> Bludgeon | R17: Thump | S17: Thump | T17: Bite | U17: =INT(W17+X17*(4.5+AC17))+3 -> 16 | V17: =2*(W17+AC17) -> 18 | W17: 8 | X17: 1 | Y17: 2 | Z17: 2 | AA17: -2 | AB17: -3 | AC17: 1 | AD17: -1 | AE17: -2 | AL17: 9 | AM17: 30 | AO17: Club | AP17: Armoured scales
B18: 2 | C18: 22 | D18: Coffer Corpse | E18: 2 | F18: -1 | G18: 2d4 | J18: 10 | K18: 10 | L18: 1/5 | N18: 1/3 | O18: Bone | P18: 0 | Q18: =VLOOKUP(R18,weapons,2, FALSE) -> Bludgeon | R18: Thump | S18: - | T18: - | U18: =INT(W18+X18*(4.5+AC18))+3 -> 22 | V18: =2*(W18+AC18) -> 18 | W18: 8 | X18: 2 | Y18: 1 | Z18: 2 | AA18: -2 | AB18: -3 | AC18: 1 | AD18: -1 | AE18: -2 | AL18: 10 | AM18: 32 | AO18: Mace | AP18: Stone scales
B19: 0 | F19: 4 | K19: 17 | AO19: Morning Star | AP19: Dragon Scales
B20: 0 | F20: 4 | H20: =IF(S20<>" - ",VLOOKUP(S20,weapons,3,FALSE)+VLOOKUP($W20,size,3)," ") ->  | K20: 17 | AO20: Morning Star-Flail | AP20: Bone
B21: 0 | F21: 4 | K21: 17 | AO21: Spear
B22: 0 | F22: 4 | K22: 17 | AO22: Spear 2 hands
B23: 0 | F23: 4 | K23: 17 | AO23: Dagger
B24: 0 | F24: 4 | K24: 17 | AO24: Cutlass
B25: 0 | F25: 4 | K25: 17 | AO25: Falchion
B26: 0 | F26: 4 | K26: 17 | AO26: Short sword
B27: 0 | F27: 4 | K27: 17 | AO27: Scimitar
B28: 0 | F28: 4 | K28: 17 | AO28: Arming Sword
B29: 0 | F29: 4 | K29: 17 | AO29: Bastard Sword
B30: 0 | F30: 4 | K30: 17 | AO30: Great Sword
B31: 0 | F31: 4 | K31: 17 | AO31: Staff
B32: =ROUNDUP((X32+Y32)/2,0) -> 0 | F32: 4 | K32: 17 | AO32: Missile
B33: 0 | F33: 4 | K33: 17
B34: 0 | F34: 4 | K34: 17
B35: 0 | F35: 4 | K35: 17
B36: 0 | F36: 4 | K36: 17
F37: 4 | K37: 17
F38: 4 | K38: 17

Sheet Animals
A1: Special | B1: Save | C1: Stamina Points | E1: Atk | F1: Dmg bonus | G1: Damage Level | J1: Defence | L1: Absorb | O1: Armour | Q1: Attack | R1: Attack | U1: Health | W1: Size | AB1: Attributes | AF1: Flying | AG1: Ability
G2: Dmg | H2: Dmg | I2: Dmg | J2: Parry | K2: Range | L2: Cut | M2: Thrust | N2: Chop | O2: Body | P2: Shield | Q2: Type | R2: Weapon | S2: Weapon | T2: Weapon | U2: SP | V2: WP | W2: feet | X2: HD | Y2: Skill | Z2: Str | AA2: Int | AB2: Will | AC2: Con | AD2: Dex | AE2: Alert | AF2: Class | AI2: Exp | AJ2: total | AL2: Attributes | AO2: Weapon | AP2: Body Armour | AQ2: Breast Plate
AL3: New | AM3: Old | AO3: - | AP3: - | AQ3: -
B4: =ROUNDUP((X4+Y4)/2,0) -> 2 | C4: =U4 -> 13 | D4: Wolf | E4: =Y4+ROUNDUP(AF4/2,0)+INT(+VLOOKUP(R4,weapons,3,FALSE)*MIN(Z4,8)+VLOOKUP(R4,weapons,4,FALSE)*(AD4))+VLOOKUP(W4,size,4) -> 5 | F4: =Z4-VLOOKUP($W4,size,3) -> 2 | G4: =VLOOKUP(VLOOKUP(R4,weapons,6,FALSE)+VLOOKUP($W4,size,3)+Y4-1,New_damage,2,FALSE) -> d4 | H4: =IF(S4<>" - ",VLOOKUP(S4,weapons,3,FALSE)+VLOOKUP($W4,size,3)," ") ->  | J4: =INT(VLOOKUP(O4,body_armour,5,FALSE)+Y4+AE4+P4+VLOOKUP(W4,size,6)+(Z4+AD4)/2+VLOOKUP(R4,weapons,5,FALSE)/2 ) -> 15 | K4: =12+P4+VLOOKUP(W4,size,5)+AF4*3 -> 13 | L4: =VLOOKUP(VLOOKUP($O4,body_armour,2,FALSE)+IF($W4>6,INT(VLOOKUP($W4,size,7)),0),Armour_translation,2,FALSE) -> 2 | M4: =VLOOKUP(VLOOKUP($O4,body_armour,3,FALSE)+IF($W4>6,INT(VLOOKUP($W4,size,7)),0),Armour_translation,2,FALSE) -> 2 | N4: =VLOOKUP(VLOOKUP($O4,body_armour,4,FALSE)+IF($W4>6,INT(VLOOKUP($W4,size,7)),0),Armour_translation,2,FALSE) -> 2 | O4: - | P4: 0 | Q4: =VLOOKUP(R4,weapons,2, FALSE) -> Pierce | R4: Bite | S4: - | T4: - | U4: =INT(W4+X4*(4.5+AC4))-2 -> 13 | V4: =2*(W4+AC4) -> 10 | W4: 4 | X4: 2 | Y4: 2 | Z4: 1 | AA4: -3 | AB4: -1 | AC4: 1 | AD4: 4 | AE4: 3 | AI4: =(5+E4)*(10+IF(AF4>0,M4,J4))*((10+F4+G4))*U4*(5+N4)/1000*VLOOKUP(AG4,Specials,3,FALSE)+VLOOKUP(AG4,Specials,2,FALSE) ->  | AJ4: =AH4*AI4*VLOOKUP(AH4,Attackers,2,TRUE) ->  | AL4: -3 | AM4: 4 | AO4: Claw | AP4: Leather | AQ4: Leather
B5: 3 | C5: 19 | D5: Worg | E5: 5 | F5: 3 | G5: d6 / d4 | J5: 16 | K5: 12 | L5: 2 | M5: 2 | N5: 2 | O5: - | P5: 0 | Q5: Pierce | R5: Bite | S5: - | T5: - | U5: 19 | V5: 12 | W5: 5 | X5: 3 | Y5: 3 | Z5: 3 | AA5: -2 | AB5: -1 | AC5: 1 | AD5: 2 | AE5: 2 | AL5: -2 | AM5: 6 | AO5: Thump | AP5: Padded | AQ5: Metal
B6: 3 | C6: 28 | D6: Dire Wolf | E6: 4 | F6: 1 | G6: d8 / d6 | J6: 17 | K6: 10 | L6: 1.5 | M6: 1.5 | N6: 1.5 | O6: - | P6: 0 | Q6: Pierce | R6: Bite | S6: - | T6: - | U6: 28 | V6: 18 | W6: 8 | X6: 4 | Y6: 2 | Z6: 4 | AA6: -3 | AB6: -1 | AC6: 1 | AD6: 0 | AE6: 2 | AL6: -1 | AM6: 8 | AO6: Bite | AP6: Scale (Leather)
A7: frost breath | B7: 4 | C7: 38 | D7: Winter Wolf | E7: 6 | F7: 0 | G7: d6 / d4 | J7: 17 | K7: 11 | L7: 2 | M7: 2 | N7: 2 | O7: - | P7: 0 | Q7: Pierce | R7: Bite | S7: - | T7: - | U7: 38 | V7: 16 | W7: 7 | X7: 6 | Y7: 2 | Z7: 1 | AA7: 0 | AB7: 0 | AC7: 1 | AD7: 3 | AE7: 3 | AL7: 0 | AM7: 11 | AO7: Hug | AP7: Boiled Leather
B8: 3 | C8: 27 | D8: Giant Lizard | E8: 0 | F8: 4 | G8: 2d4 | J8: 10 | K8: 11 | L8: 1 | M8: 1 | N8: 1 | O8: Hide | P8: 0 | Q8: Pierce | R8: Bite | S8: - | T8: - | U8: 27 | V8: 16 | W8: 7 | X8: 4 | Y8: 1 | Z8: 5 | AA8: -5 | AB8: -3 | AC8: 1 | AD8: -2 | AE8: -1 | AL8: 1 | AM8: 14 | AO8: Cleaver | AP8: Scale (Iron)
B9: 2 | C9: 9 | D9: Giant Black Ants | E9: 2 | F9: 3 | G9: d3 | J9: 11 | K9: 15 | L9: 1 | M9: 1.5 | N9: 1.5 | O9: Scales | P9: 0 | Q9: Pierce | R9: Bite | S9: - | T9: - | U9: =INT(W9+X9*(4.5+AC9))-2 -> 9 | V9: =2*(W9+AC9) -> 4 | W9: 2 | X9: 2 | Y9: 2 | Z9: 1 | AA9: -2 | AB9: -1 | AC9: 0 | AD9: 1 | AE9: 0 | AG9: Poison | AL9: 2 | AM9: 16 | AO9: Bow - Short | AP9: Mail Hauberk
A10: + Acid L1 | B10: 2 | C10: 10 | D10: Giant Red Ants | E10: 2 | F10: 4 | G10: d3 | J10: 10 | K10: 14 | L10: 1/4 | M10: 1/4 | N10: 1/4 | O10: Armoured scales | P10: 0 | Q10: =VLOOKUP(R10,weapons,2, FALSE) -> Pierce | R10: Bite | S10: - | T10: - | U10: =INT(W10+X10*(4.5+AC10))-2 -> 10 | V10: =2*(W10+AC10) -> 6 | W10: 3 | X10: 2 | Y10: 2 | Z10: 2 | AA10: -2 | AB10: -1 | AC10: 0 | AD10: 2 | AE10: 0 | AG10: Poison | AL10: 2 | AM10: 16 | AO10: Bow - Short | AP10: Mail Hauberk
B11: 1 | C11: 4 | D11: Giant Bats | E11: 5 | F11: 2 | G11: d2 | J11: 12 | K11: 27 | L11: 1 | M11: 1.5 | N11: 1.5 | O11: Leather | P11: 0 | Q11: Pierce | R11: Bite | S11: - | T11: - | U11: 4 | V11: 4 | W11: 2 | X11: 1 | Y11: 1 | Z11: 0 | AA11: -2 | AB11: -2 | AC11: 0 | AD11: 3 | AE11: 3 | AF11: 4 | AL11: 3 | AM11: 18 | AO11: Bow - Long | AP11: Mail
A12: disease DC 7 | B12: 1 | C12: 6 | D12: Giant Rat | E12: 3 | F12: -1 | G12: d2 | J12: 11 | K12: 15 | L12: 2 | M12: 2 | N12: 2 | O12: - | P12: 0 | Q12: Pierce | R12: Bite | S12: - | T12: - | U12: 6 | V12: 8 | W12: 2 | X12: 1 | Y12: 1 | Z12: -3 | AA12: -3 | AB12: -2 | AC12: 2 | AD12: 3 | AE12: 2 | AG12: Disease | AL12: 4 | AM12: 20 | AO12: Crossbow | AP12: Coat of Plates
A13: Neurotoxin (15) | B13: 5 | C13: =U13 -> 71 | D13: Giant Cobra | E13: 8 | F13: 2 | G13: d12 / d10 | J13: 21 | K13: 9 | L13: 3/4 | M13: 1 | N13: 1 | O13: Scales | P13: 0 | Q13: =VLOOKUP(R13,weapons,2, FALSE) -> Pierce | R13: Bite | S13: - | T13: - | U13: =INT(W13+X13*(4.5+AC13))-2 -> 71 | V13: =2*(W13+AC13) -> 32 | W13: 10 | X13: 6 | Y13: 3 | Z13: 7 | AA13: -3 | AB13: -2 | AC13: 6 | AD13: 2 | AE13: 2 | AL13: 5 | AM13: 22 | AO13: Battle-axe | AP13: Plate
B14: 4 | C14: 20 | D14: Jaguar | E14: 7 | F14: 3 | G14: d6 / d4 | H14: -1 | J14: 18 | K14: 13 | L14: 2 | M14: 2 | N14: 2 | O14: - | P14: 0 | Q14: =VLOOKUP(R14,weapons,2, FALSE) -> Pierce | R14: Bite | S14: Claw | T14: - | U14: =INT(W14+X14*(4.5+AC14))-2 -> 20 | V14: =2*(W14+AC14) -> 8 | W14: 4 | X14: 4 | Y14: 4 | Z14: 2 | AA14: -3 | AB14: 0 | AC14: 0 | AD14: 4 | AE14: 3 | AL14: 6 | AM14: 24 | AO14: Battle-axe 2 hands | AP14: Hide
A15: crush 1-6 | B15: 4 | C15: 19 | D15: Dire Weasel | E15: 8 | F15: 2 | G15: d8 / d4 | J15: 19 | K15: 12 | L15: 2 | M15: 2 | N15: 2 | O15: - | P15: 0 | Q15: Pierce | R15: Bite | S15: - | T15: - | U15: 19 | V15: 12 | W15: 5 | X15: 3 | Y15: 4 | Z15: 2 | AA15: -3 | AB15: -1 | AC15: 1 | AD15: 4 | AE15: 3 | AL15: 7 | AM15: 26 | AO15: Hand Axe | AP15: Thick Hide
B16: 2 | C16: 8 | D16: Nandie | E16: 7 | F16: 4 | G16: d4 | H16: 0 | I16: 0 | J16: 19 | K16: 12 | L16: 2 | M16: 2 | N16: 2 | O16: - | P16: 0 | Q16: Slash | R16: Claw | S16: Claw | T16: Bite | U16: 8 | V16: 12 | W16: 5 | X16: 1 | Y16: 2 | Z16: 4 | AA16: -2 | AB16: 0 | AC16: 1 | AD16: 5 | AE16: 3 | AL16: 8 | AM16: 28 | AO16: War Hammer | AP16: Scales
B17: 2 | C17: 8 | D17: Nandie - Rocks | E17: 7 | F17: 4 | G17: d3 | J17: 18 | K17: 12 | L17: 2 | M17: 2 | N17: 2 | O17: - | P17: 0 | Q17: Bludgeon | R17: Missile | S17: - | T17: - | U17: 8 | V17: 12 | W17: 5 | X17: 1 | Y17: 2 | Z17: 4 | AA17: -2 | AB17: 0 | AC17: 1 | AD17: 5 | AE17: 3 | AL17: 9 | AM17: 30 | AO17: Club | AP17: Armoured scales
B18: 2 | C18: 13 | D18: Nandie-bear | E18: 7 | F18: 4 | G18: d8 / d4 | H18: 3 | I18: 3 | J18: 19 | K18: 10 | L18: 3/4 | M18: 3/4 | N18: 3/4 | O18: Hide | P18: 0 | Q18: Slash | R18: Claw | S18: Claw | T18: Bite | U18: 13 | V18: 22 | W18: 8 | X18: 1 | Y18: 2 | Z18: 7 | AA18: -1 | AB18: 0 | AC18: 3 | AD18: 3 | AE18: 2 | AL18: 10 | AM18: 32 | AO18: Mace | AP18: Stone scales
B19: 2 | C19: 4 | D19: Bloodhawk | E19: 8 | F19: 0 | G19: d2 | H19: -2 | I19: -2 | J19: 16 | K19: 24 | L19: 2 | M19: 2 | N19: 2 | O19: - | P19: 0 | Q19: Slash | R19: Claw | S19: Claw | T19: Bite | U19: 4 | V19: 4 | W19: 2 | X19: 1 | Y19: 2 | Z19: -2 | AA19: -2 | AB19: 0 | AC19: 0 | AD19: 5 | AE19: 4 | AF19: 3 | AO19: Morning Star | AP19: Dragon Scales
B20: 1 | C20: 4 | D20: Weasel | E20: 4 | F20: -1 | H20: =IF(S20<>" - ",VLOOKUP(S20,weapons,3,FALSE)+VLOOKUP($W20,size,3)," ") -> -2 | I20: -2 | J20: 13 | K20: 15 | L20: 2 | M20: 2 | N20: 2 | O20: - | P20: 0 | Q20: Slash | R20: Claw | S20: Claw | T20: Bite | U20: 4 | V20: 4 | W20: 2 | X20: 1 | Y20: 0 | Z20: -3 | AA20: -2 | AB20: 0 | AC20: 0 | AD20: 5 | AE20: 4 | AO20: Morning Star-Flail | AP20: Bone
B21: 2 | C21: 3 | D21: Beetle - Fire | E21: 3 | F21: 6 | G21: d2 | J21: 11 | K21: 16 | L21: 1/4 | M21: 1/4 | N21: 1/4 | O21: Armoured scales | P21: 0 | Q21: =VLOOKUP(R21,weapons,2, FALSE) -> Pierce | R21: Bite | S21: - | T21: - | U21: 3 | V21: 2 | W21: 1 | X21: 1 | Y21: 2 | Z21: 3 | AA21: -4 | AB21: 0 | AC21: 0 | AD21: 1 | AE21: -1 | AO21: Spear
B22: 2 | C22: 10 | D22: Spider - Crab | E22: 5 | F22: -1 | G22: d3 | J22: 13 | K22: 14 | L22: 2 | M22: 2 | N22: 2 | O22: - | P22: 0 | Q22: Pierce | R22: Bite | S22: - | T22: - | U22: =INT(W22+X22*(4.5+AC22))-2 -> 10 | V22: =2*(W22+AC22) -> 6 | W22: 3 | X22: 2 | Y22: 2 | Z22: -3 | AA22: -3 | AB22: -2 | AC22: 0 | AD22: 5 | AE22: 3 | AO22: Spear 2 hands
B23: 3 | C23: 10 | D23: Spider - Trapdoor | E23: 7 | F23: -1 | G23: d4 | J23: 14 | K23: 14 | L23: 2 | M23: 2 | N23: 2 | O23: - | P23: 0 | Q23: Pierce | R23: Bite | S23: - | T23: - | U23: =INT(W23+X23*(4.5+AC23))-2 -> 10 | V23: =2*(W23+AC23) -> 6 | W23: 3 | X23: 2 | Y23: 3 | Z23: -3 | AA23: -3 | AB23: -2 | AC23: 0 | AD23: 6 | AE23: 3 | AO23: Dagger
B24: 2 | C24: 19 | D24: Crocodile | E24: 4 | F24: 3 | G24: 2d4 | J24: 15 | K24: 12 | L24: 1 | M24: 1.5 | N24: 1.5 | O24: Scales | P24: 0 | Q24: Pierce | R24: Bite | S24: - | T24: - | U24: =INT(W24+X24*(4.5+AC24))-2 -> 19 | V24: =2*(W24+AC24) -> 18 | W24: 6 | X24: 2 | Y24: 2 | Z24: 3 | AA24: -1 | AB24: -1 | AC24: 3 | AD24: 2 | AE24: 2 | AO24: Short sword
A25: Nausea | B25: 2 | C25: 6 | D25: Angoran Wormkin | E25: 2 | F25: 3 | G25: d3 | J25: 9 | K25: 14 | L25: 1 | M25: 1 | N25: 1 | O25: Hide | P25: 0 | Q25: Pierce | R25: Bite | S25: - | T25: - | U25: =INT(W25+X25*(4.5+AC25))-2 -> 6 | V25: =2*(W25+AC25) -> 8 | W25: 3 | X25: 1 | Y25: 2 | Z25: 1 | AA25: -2 | AB25: 0 | AC25: 1 | AD25: 2 | AE25: 0 | AO25: Scimitar
A26: 14 = hug | B26: 3 | C26: 23 | D26: Black Bear | E26: 3 | F26: 5 | G26: d4 | H26: 0 | I26: 0.5 | J26: 16 | K26: 12 | L26: 2 | M26: 2 | N26: 2 | O26: - | P26: 0 | Q26: Slash | R26: Claw | S26: Claw | T26: Hug | U26: =INT(W26+X26*(4.5+AC26))-2 -> 23 | V26: =2*(W26+AC26) -> 16 | W26: 6 | X26: 3 | Y26: 2 | Z26: 5 | AA26: -3 | AB26: -2 | AC26: 2 | AD26: 1 | AE26: 2 | AO26: Arming Sword
B27: 0 | F27: 4 | K27: 17 | AO27: Bastard Sword
B28: 0 | F28: 4 | K28: 17 | AO28: Great Sword
B29: 0 | F29: 4 | K29: 17 | AO29: Staff
B30: 0 | F30: 4 | K30: 17 | AO30: Missile
B31: 0 | F31: 4 | K31: 17
B32: =ROUNDUP((X32+Y32)/2,0) -> 0 | F32: 4 | K32: 17
B33: 0 | F33: 4 | K33: 17
B34: 0 | F34: 4 | K34: 17
B35: 0 | F35: 4 | K35: 17
B36: 0 | F36: 4 | K36: 17
F37: 4 | K37: 17
F38: 4 | K38: 17
F39: 4 | H39: =IF(S39<>" - ",VLOOKUP(S39,weapons,3,FALSE)+VLOOKUP($W39,size,3)," ") ->  | I39: =IF(T39<>" - ",VLOOKUP(T39,weapons,3,FALSE)+VLOOKUP($W39,size,3)," ") ->  | K39: =12+P39+VLOOKUP(W39,size,5)+AF39*3 -> 17

Sheet Monsters
A1: Special | B1: Save | C1: Stamina Points | E1: Atk | F1: Dmg bonus | G1: Damage Level | J1: Defence | L1: Absorb | O1: Armour | Q1: Attack | R1: Attack | U1: Health | W1: Size | AB1: Attributes | AF1: Flying | AG1: Ability
G2: Dmg | H2: Dmg | I2: Dmg | J2: Parry | K2: Range | L2: Cut | M2: Thrust | N2: Chop | O2: Body | P2: Shield | Q2: Type | R2: Weapon | S2: Weapon | T2: Weapon | U2: SP | V2: WP | W2: feet | X2: HD | Y2: Skill | Z2: Str | AA2: Int | AB2: Will | AC2: Con | AD2: Dex | AE2: Alert | AF2: Class | AI2: Exp | AJ2: total | AL2: Attributes | AO2: Weapon | AP2: Body Armour | AQ2: Breast Plate
AL3: New | AM3: Old | AO3: - | AP3: - | AQ3: -
B4: =ROUNDUP((X4+Y4)/2,0) -> 3 | C4: =U4 -> 38 | D4: Gargoyle | E4: =Y4+ROUNDUP(AF4/2,0)+INT(+VLOOKUP(R4,weapons,3,FALSE)*MIN(Z4,8)+VLOOKUP(R4,weapons,4,FALSE)*(AD4))+VLOOKUP(W4,size,4) -> 5 | F4: =Z4-VLOOKUP($W4,size,3) -> 2 | G4: =VLOOKUP(VLOOKUP(R4,weapons,6,FALSE)+VLOOKUP($W4,size,3)+Y4-1,New_damage,2,FALSE) -> d4 | H4: =IF(S4<>" - ",VLOOKUP(S4,weapons,3,FALSE)+VLOOKUP($W4,size,3)," ") -> 0 | I4: 0 | J4: =INT(VLOOKUP(O4,body_armour,5,FALSE)+Y4+AE4+P4+VLOOKUP(W4,size,6)+(Z4+AD4)/2+VLOOKUP(R4,weapons,5,FALSE)/2 ) -> 12 | K4: =12+P4+VLOOKUP(W4,size,5)+AF4*3 -> 21 | L4: =VLOOKUP(VLOOKUP($O4,body_armour,2,FALSE)+IF($W4>6,INT(VLOOKUP($W4,size,7)),0),Armour_translation,2,FALSE) -> 1/5 | M4: =VLOOKUP(VLOOKUP($O4,body_armour,3,FALSE)+IF($W4>6,INT(VLOOKUP($W4,size,7)),0),Armour_translation,2,FALSE) -> 1/5 | N4: =VLOOKUP(VLOOKUP($O4,body_armour,4,FALSE)+IF($W4>6,INT(VLOOKUP($W4,size,7)),0),Armour_translation,2,FALSE) -> 1/3 | O4: Stone scales | P4: 0 | Q4: =VLOOKUP(R4,weapons,2, FALSE) -> Slash | R4: Claw | S4: Claw | T4: Bite | U4: =INT(W4+X4*(4.5+AC4))-2 -> 38 | V4: =2*(W4+AC4) -> 20 | W4: 6 | X4: 4 | Y4: 2 | Z4: 2 | AA4: 0 | AB4: 0 | AC4: 4 | AD4: 1 | AE4: 0 | AF4: 3 | AI4: =(5+E4)*(10+IF(AF4>0,M4,J4))*((10+F4+G4))*U4*(5+N4)/1000*VLOOKUP(AG4,Specials,3,FALSE)+VLOOKUP(AG4,Specials,2,FALSE) ->  | AJ4: =AH4*AI4*VLOOKUP(AH4,Attackers,2,TRUE) ->  | AL4: -3 | AM4: 4 | AO4: Claw | AP4: Leather | AQ4: Leather
B5: 8 | C5: 81 | D5: Sussurus | E5: 10 | F5: 3 | G5: d12 / d10 | H5: 1 | I5: 1 | J5: 21 | K5: 12 | L5: 1/5 | M5: 1/5 | N5: 1/3 | O5: Stone scales | P5: 1 | Q5: Slash | R5: Claw | S5: Claw | T5: Bite | U5: 81 | V5: =2*(W5+AC5) -> 24 | W5: 7 | X5: 8 | Y5: 8 | Z5: 4 | AA5: 0 | AB5: 0 | AC5: 5 | AD5: 1 | AE5: 0 | AL5: -2 | AM5: 6 | AO5: Thump | AP5: Padded | AQ5: Metal
B6: 5 | C6: 31 | D6: Embertree | E6: 4 | F6: 0 | G6: d6 / d4 | J6: 14 | K6: 15 | L6: 1 | M6: 1 | N6: 3/4 | O6: Scale (Leather) | P6: 3 | Q6: Bludgeon | R6: Thump | S6: - | T6: - | U6: 31 | V6: =2*(W6+AC6) -> 14 | W6: 6 | X6: 5 | Y6: 5 | Z6: 0 | AA6: 0 | AB6: 0 | AC6: 1 | AD6: -1 | AE6: 0 | AL6: -1 | AM6: 8 | AO6: Bite | AP6: Scale (Leather)
B7: 2 | C7: 11 | D7: Berbelang | E7: 5 | F7: 2 | G7: 2d4 | H7: 0 | I7: 0 | J7: 15 | K7: 18 | L7: 1 | M7: 1.5 | N7: 1.5 | O7: Leather | P7: 0 | Q7: Slash | R7: Claw | S7: Claw | T7: Bite | U7: 11 | V7: =2*(W7+AC7) -> 18 | W7: 6 | X7: 1 | Y7: 3 | Z7: 2 | AA7: 2 | AB7: 2 | AC7: 3 | AD7: 1 | AE7: 2 | AF7: 2 | AL7: 0 | AM7: 11 | AO7: Hug | AP7: Boiled Leather
B8: 2 | C8: 5 | D8: Stirge | E8: 6 | F8: 1 | G8: d4 | J8: 12 | K8: 23 | L8: 2 | M8: 2 | N8: 2 | O8: - | P8: 0 | Q8: Pierce | R8: Bite | S8: - | T8: - | U8: 5 | V8: =2*(W8+AC8) -> 6 | W8: 3 | X8: 1 | Y8: 3 | Z8: -1 | AA8: -1 | AB8: 0 | AC8: 0 | AD8: 3 | AE8: 1 | AF8: 3 | AL8: 1 | AM8: 14 | AO8: Cleaver | AP8: Scale (Iron)
B9: 1 | C9: 4 | D9: Wall hugger | E9: 0 | F9: 2 | G9: d3 | J9: 8 | K9: 13 | L9: 2 | M9: 2 | N9: 2 | O9: - | Q9: Bludgeon | R9: Hug | S9: - | T9: - | U9: 4 | V9: 10 | W9: 4 | X9: 0.5 | Y9: 0 | Z9: 1 | AA9: -1 | AB9: -2 | AC9: 0 | AD9: 1 | AE9: -1 | AL9: 2 | AM9: 16 | AO9: Bow - Short | AP9: Mail Hauberk
F10: 4 | K10: 17 | AL10: 3 | AM10: 18 | AO10: Bow - Long | AP10: Mail
A11: break <6 | B11: 3 | C11: 30 | D11: Carytid Column | E11: 4 | F11: 5 | G11: d8 / d6 | J11: 13 | K11: 12 | L11: 1/5 | M11: 1/5 | N11: 1/3 | O11: Stone scales | P11: 0 | Q11: =VLOOKUP(R11,weapons,2, FALSE) -> Slash | R11: Scimitar | S11: - | T11: - | U11: 30 | V11: =2*(W11+AC11) -> 16 | W11: 6 | X11: 4 | Y11: 2 | Z11: 5 | AA11: -2 | AB11: 0 | AC11: 2 | AD11: -1 | AE11: 0 | AL11: 4 | AM11: 20 | AO11: Crossbow | AP11: Coat of Plates
B12: 0 | F12: 4 | K12: 17 | AL12: 5 | AM12: 22 | AO12: Battle-axe | AP12: Plate
B13: 0 | F13: 4 | K13: 17 | AL13: 6 | AM13: 24 | AO13: Battle-axe 2 hands | AP13: Hide
B14: 0 | F14: 4 | K14: 17 | AL14: 7 | AM14: 26 | AO14: Hand Axe | AP14: Thick Hide
B15: 0 | F15: 4 | K15: 17 | AL15: 8 | AM15: 28 | AO15: War Hammer | AP15: Scales
B16: 0 | F16: 4 | K16: 17 | AL16: 9 | AM16: 30 | AO16: Club | AP16: Armoured scales
B17: 0 | F17: 4 | K17: 17 | AL17: 10 | AM17: 32 | AO17: Mace | AP17: Stone scales
B18: 0 | F18: 4 | K18: 17 | AO18: Morning Star | AP18: Dragon Scales
B19: 0 | F19: 4 | K19: 17 | AO19: Morning Star-Flail | AP19: Bone
B20: 0 | F20: 4 | H20: =IF(S20<>" - ",VLOOKUP(S20,weapons,3,FALSE)+VLOOKUP($W20,size,3)," ") ->  | K20: 17 | AO20: Spear
B21: 0 | F21: 4 | K21: 17 | AO21: Spear 2 hands
B22: 0 | F22: 4 | K22: 17 | AO22: Dagger
B23: 0 | F23: 4 | K23: 17 | AO23: Cutlass
B24: 0 | F24: 4 | K24: 17 | AO24: Falchion
B25: 0 | F25: 4 | K25: 17 | AO25: Short sword
B26: 0 | F26: 4 | K26: 17 | AO26: Scimitar
B27: 0 | F27: 4 | K27: 17 | AO27: Arming Sword
B28: 0 | F28: 4 | K28: 17 | AO28: Bastard Sword
B29: 0 | F29: 4 | K29: 17 | AO29: Great Sword
B30: 0 | F30: 4 | K30: 17 | AO30: Staff
B31: 0 | F31: 4 | K31: 17 | AO31: Missile
B32: =ROUNDUP((X32+Y32)/2,0) -> 0 | F32: 4 | K32: 17
B33: 0 | F33: 4 | K33: 17
B34: 0 | F34: 4 | K34: 17
B35: 0 | F35: 4 | K35: 17
B36: 0 | F36: 4 | K36: 17
F37: 4 | K37: 17
F38: 4 | K38: 17
F39: 4 | H39: =IF(S39<>" - ",VLOOKUP(S39,weapons,3,FALSE)+VLOOKUP($W39,size,3)," ") ->  | K39: 17

Sheet Special
A1: Special | B1: Save | C1: Stamina Points | E1: Atk | F1: Dmg bonus | G1: Damage Level | J1: Defence | L1: Absorb | O1: Armour | Q1: Attack | R1: Attack | U1: Health | W1: Size | AB1: Attributes | AF1: Flight | AG1: Ability
G2: Dmg | H2: Dmg | I2: Dmg | J2: Parry | K2: Range | L2: Cut | M2: Thrust | N2: Chop | O2: Body | P2: Shield | Q2: Type | R2: Weapon | S2: Weapon | T2: Weapon | U2: SP | V2: WP | W2: feet | X2: HD | Y2: Skill | Z2: Str | AA2: Int | AB2: Will | AC2: Con | AD2: Dex | AE2: Alert | AF2: Class | AI2: Exp | AJ2: total | AL2: Weapon | AM2: Body Armour | AN2: Breast Plate
AL3: - | AM3: - | AN3: -
B4: =ROUNDUP((X4+Y4)/2,0) -> 3 | C4: =U4 -> 9 | D4: Dagger | E4: =Y4+ROUNDUP(AF4/2,0)+INT(+VLOOKUP(R4,weapons,3,FALSE)*MIN(Z4,8)+VLOOKUP(R4,weapons,4,FALSE)*(AD4))+VLOOKUP(W4,size,4) -> 12 | F4: =Z4-VLOOKUP($W4,size,3) -> 5 | G4: =VLOOKUP(VLOOKUP(R4,weapons,6,FALSE)+VLOOKUP($W4,size,3)+Y4-1,New_damage,2,FALSE) -> d3 | H4: =IF(S4<>" - ",VLOOKUP(S4,weapons,3,FALSE)+VLOOKUP($W4,size,3)," ") ->  | J4: =INT(VLOOKUP(O4,body_armour,5,FALSE)+Y4+AE4+P4+VLOOKUP(W4,size,6)+(Z4+AD4)/2+VLOOKUP(R4,weapons,5,FALSE)/2 ) -> 15 | K4: =12+P4+VLOOKUP(W4,size,5)+AF4*3 -> 32 | L4: =VLOOKUP(VLOOKUP($O4,body_armour,2,FALSE)+IF($W4>6,INT(VLOOKUP($W4,size,7)),0),Armour_translation,2,FALSE) -> 1/5 | M4: =VLOOKUP(VLOOKUP($O4,body_armour,3,FALSE)+IF($W4>6,INT(VLOOKUP($W4,size,7)),0),Armour_translation,2,FALSE) -> 1/4 | N4: =VLOOKUP(VLOOKUP($O4,body_armour,4,FALSE)+IF($W4>6,INT(VLOOKUP($W4,size,7)),0),Armour_translation,2,FALSE) -> 1/3 | O4: Plate | P4: 0 | Q4: =VLOOKUP(R4,weapons,2, FALSE) -> Pierce | R4: Dagger | S4: - | T4: - | U4: =INT(W4+X4*(4.5+AC4))+3 -> 9 | V4: =2*(W4+AC4) -> 3 | W4: 0.5 | X4: 1 | Y4: 4 | Z4: 1 | AA4: -3 | AB4: 0 | AC4: 1 | AD4: 4 | AE4: 2 | AF4: 5 | AI4: =(5+E4)*(10+IF(AF4>0,M4,J4))*((10+F4+G4))*U4*(5+N4)/1000*VLOOKUP(AG4,Specials,3,FALSE)+VLOOKUP(AG4,Specials,2,FALSE) ->  | AJ4: =AH4*AI4*VLOOKUP(AH4,Attackers,2,TRUE) ->  | AL4: Claw | AM4: Leather | AN4: Leather
B5: 8 | C5: =U5 -> 63 | D5: Susurrus | E5: 12 | F5: 0 | G5: 2d12 + 2d4 | H5: 3 | I5: 3 | J5: 22 | K5: 10 | L5: 1/5 | M5: 1/5 | N5: 1/5 | O5: Armoured scales | P5: 0 | Q5: Bludgeon | R5: Hug | S5: Claw | T5: Claw | U5: 63 | V5: 20 | W5: 8 | X5: 8 | Y5: 8 | Z5: 3 | AA5: -1 | AB5: -1 | AC5: 2 | AD5: 1 | AE5: 2 | AL5: Thump | AM5: Padded | AN5: Metal
B6: 4 | C6: =U6 -> 34 | D6: Shadow Dancer | E6: 8 | F6: 5 | G6: d8 / d4 | H6: 0 | J6: 20 | K6: 12 | L6: 1/5 | M6: 1/5 | N6: 1/3 | O6: Stone scales | P6: 0 | Q6: Slash | R6: Claw | S6: Claw | T6: - | U6: 34 | V6: 20 | W6: 6 | X6: 3 | Y6: 5 | Z6: 5 | AA6: -2 | AB6: -2 | AC6: 4 | AD6: 3 | AE6: 3 | AL6: Bite | AM6: Scale (Leather)
B7: 6 | C7: =U7 -> 56 | D7: Thraak | E7: 7 | F7: 5 | G7: d10 / d8 | H7: 3 | J7: 22 | K7: 10 | L7: 3/4 | M7: 1 | N7: 1 | O7: Leather | P7: 0 | Q7: Slash | R7: Claw | S7: Claw | T7: - | U7: 56 | V7: 20 | W7: 8 | X7: 7 | Y7: 5 | Z7: 8 | AA7: -1 | AB7: -1 | AC7: 2 | AD7: 0 | AE7: 3 | AL7: Hug | AM7: Boiled Leather
B8: 3 | C8: =U8 -> 44 | D8: Pellarn Statue | E8: 11 | F8: 2 | G8: d8 / d6 | J8: 9 | K8: 9 | L8: 1/5 | M8: 1/4 | N8: 1/3 | O8: Coat of Plates | P8: 0 | Q8: Bludgeon | R8: Club | S8: - | T8: - | U8: 44 | V8: 28 | W8: 11 | X8: 4 | Y8: 1 | Z8: 7 | AA8: -5 | AB8: -3 | AC8: 3 | AD8: -2 | AE8: -2 | AL8: Cleaver | AM8: Scale (Iron)
B9: 6 | E9: 7 | F9: 1 | G9: 2d12+d2 | J9: 16 | K9: 14 | L9: 1/4 | M9: 1/3 | N9: 1/2 | O9: Coat of Plates | P9: 2 | Q9: Slash | R9: Bastard Sword | S9: - | T9: - | U9: 48 | V9: 16 | W9: 6 | X9: 6 | Y9: 6 | Z9: 1 | AA9: 0 | AB9: 1 | AC9: 2 | AD9: 1 | AE9: 0 | AL9: Bow - Short | AM9: Mail Hauberk
B10: 1 | E10: 2 | F10: -1 | G10: d2 | J10: 10 | K10: 15 | L10: 2 | M10: 2 | N10: 2 | O10: - | P10: 0 | Q10: Pierce | R10: Bite | S10: - | T10: - | U10: =INT(W10+X10*(4.5+AC10))-2 -> 5 | V10: 6 | W10: 2 | X10: 1 | Y10: 1 | Z10: -3 | AA10: -3 | AB10: -3 | AC10: 1 | AD10: 2 | AE10: 2 | AL10: Bow - Long | AM10: Mail
B11: 5 | E11: 1 | F11: 3 | G11: d6 / d4 | J11: 12 | K11: 10 | L11: 3/4 | M11: 3/4 | N11: 3/4 | O11: Hide | P11: 0 | Q11: Pierce | R11: Bite | S11: - | T11: - | U11: =INT(W11+X11*(4.5+AC11))-2 -> 71 | V11: 20 | W11: 8 | X11: 10 | Y11: 0 | Z11: 6 | AA11: -3 | AB11: -1 | AC11: 2 | AD11: -1 | AE11: 0 | AL11: Crossbow | AM11: Coat of Plates
B12: 0 | F12: 4 | K12: 17 | AL12: Battle-axe | AM12: Plate
B13: 0 | F13: 4 | K13: 17 | AL13: Battle-axe 2 hands | AM13: Hide
B14: 0 | F14: 4 | K14: 17 | AL14: Hand Axe | AM14: Thick Hide
B15: 0 | F15: 4 | K15: 17 | AL15: War Hammer | AM15: Scales
B16: 0 | F16: 4 | K16: 17 | AL16: Club | AM16: Armoured scales
B17: 0 | F17: 4 | K17: 17 | AL17: Mace | AM17: Stone scales
B18: 0 | F18: 4 | K18: 17 | AL18: Morning Star | AM18: Dragon Scales
B19: 0 | F19: 4 | K19: 17 | AL19: Morning Star-Flail | AM19: Bone
B20: 0 | F20: 4 | H20: =IF(S20<>" - ",VLOOKUP(S20,weapons,3,FALSE)+VLOOKUP($W20,size,3)," ") ->  | K20: 17 | AL20: Spear
B21: 0 | F21: 4 | K21: 17 | AL21: Spear 2 hands
B22: 0 | F22: 4 | K22: 17 | AL22: Dagger
B23: 0 | F23: 4 | K23: 17 | AL23: Cutlass
B24: 0 | F24: 4 | K24: 17 | AL24: Falchion
B25: 0 | F25: 4 | K25: 17 | AL25: Short sword
B26: 0 | F26: 4 | K26: 17 | AL26: Scimitar
B27: 0 | F27: 4 | K27: 17 | AL27: Arming Sword
B28: 0 | F28: 4 | K28: 17 | AL28: Bastard Sword
B29: 0 | F29: 4 | K29: 17 | AL29: Great Sword
B30: 0 | F30: 4 | K30: 17 | AL30: Staff
B31: 0 | F31: 4 | K31: 17 | AL31: Missile
B32: =ROUNDUP((X32+Y32)/2,0) -> 0 | F32: 4 | K32: 17
B33: 0 | F33: 4 | K33: 17
B34: 0 | F34: 4 | K34: 17
B35: 0 | F35: 4 | K35: 17
B36: 0 | F36: 4 | K36: 17
F37: 4 | K37: 17
F38: 4 | K38: 17
F39: 4 | H39: =IF(S39<>" - ",VLOOKUP(S39,weapons,3,FALSE)+VLOOKUP($W39,size,3)," ") ->  | K39: 17

Sheet Encounter
A1: Special | B1: Save | C1: SP | D1: Creature | E1: Atk | F1: Dmg bonus | G1: Damage Level | J1: Defence | L1: Absorb | O1: Armour | Q1: Attack | R1: Attack | S1: Attack | T1: Attack | U1: Health | W1: Size | Z1: Attributes | AF1: Flying class | AG1: Ability | AH1: No. | AI1: Exp | AJ1: Total Exp | AK1: Hero points
G2: Dmg | H2: Dmg | I2: Dmg | J2: Parry | K2: Range | L2: Cut | M2: Thrust | N2: Chop | O2: Body | P2: Shield | Q2: Type | R2: Weapon | U2: SP | V2: WP | W2: feet | X2: HD | Y2: Skill | Z2: Str | AA2: Int | AB2: Will | AC2: Con | AD2: Dex | AE2: Alert | AL2: Weapon | AM2: Body Armour | AN2: Breast Plate
AL3: - | AM3: - | AN3: -
E4: =Y4+ROUNDUP(AF4/2,0)+INT(+VLOOKUP(R4,weapons,5,FALSE)*MIN(Z4,8)+VLOOKUP(R4,weapons,6,FALSE)*(AD4+VLOOKUP(O4,body_armour,5,FALSE)))+VLOOKUP(W4,size,4) ->  | F4: =IF(VLOOKUP($W4,size,3)<0,0,Z4-VLOOKUP($W4,size,3)) -> 0 | G4: =VLOOKUP(VLOOKUP(R4,weapons,10,FALSE)+VLOOKUP($W4,size,3)+Y4-1,New_damage,2,FALSE) ->  | H4: =IF(S4<>" - ",VLOOKUP(S4,weapons,3,FALSE)+VLOOKUP($W4,size,3)," ") ->  | J4: =INT(VLOOKUP(O4,body_armour,9,FALSE)+Y4+AE4+P4+VLOOKUP(W4,size,4)+(Z4+AD4)/2+VLOOKUP(R4,weapons,9,FALSE) ) ->  | K4: =12+P4+VLOOKUP(W4,size,5)+AF4*3 -> 17 | L4: =VLOOKUP(VLOOKUP($O4,body_armour,6,FALSE)+IF($W4>6,INT(VLOOKUP($W4,size,7)/2),0),Armour_translation,2,FALSE) ->  | M4: =VLOOKUP(VLOOKUP($O4,body_armour,7,FALSE)+IF($W4>6,INT(VLOOKUP($W4,size,7)/2),0),Armour_translation,2,FALSE) ->  | N4: =VLOOKUP(VLOOKUP($O4,body_armour,8,FALSE)+IF($W4>6,INT(VLOOKUP($W4,size,7)/2),0),Armour_translation,2,FALSE) ->  | AL4: Claw | AM4: Leather | AN4: Leather
C5: =U5 -> 0 | F5: =IF(VLOOKUP($W5,size,3)<0,0,Z5-VLOOKUP($W5,size,3)) -> 0 | K5: 17 | AL5: Thump | AM5: Padded | AN5: Metal
C6: 0 | F6: =Z6 -> 0 | K6: 17 | AL6: Bite | AM6: Scale (Leather)
C7: 0 | F7: =Z7 -> 0 | K7: 17 | AL7: Cleaver | AM7: Boiled Leather
C8: 0 | F8: 0 | K8: 17 | AL8: Bow - Short | AM8: Scale (Iron)
C9: 0 | F9: 0 | K9: 17 | AL9: Bow - Long | AM9: Mail Hauberk
C10: 0 | F10: 0 | K10: 17 | AL10: Crossbow | AM10: Mail
C11: 0 | F11: 0 | K11: 17 | AL11: Battle-axe | AM11: Coat of Plates
C12: 0 | F12: 0 | K12: 17 | AL12: Battle-axe 2 hands | AM12: Plate
C13: 0 | F13: 0 | K13: 17 | AL13: Hand Axe | AM13: Hide
C14: 0 | F14: 0 | K14: 17 | AL14: War Hammer | AM14: Thick Hide
C15: 0 | F15: 0 | K15: 17 | AL15: Club | AM15: Scales
C16: 0 | F16: 0 | K16: 17 | AL16: Mace | AM16: Armoured scales
C17: 0 | F17: 0 | K17: 17 | AL17: Morning Star | AM17: Stone scales
C18: 0 | F18: 0 | K18: 17 | AL18: Morning Star-Flail | AM18: Dragon Scales
C19: 0 | F19: 0 | K19: 17 | AL19: Spear | AM19: Bone
F20: 0 | H20: =IF(S20<>" - ",VLOOKUP(S20,weapons,3,FALSE)+VLOOKUP($W20,size,3)," ") ->  | K20: 17 | AL20: Spear 2 hands
F21: 0 | K21: 17 | AL21: Dagger
C22: 0 | F22: 0 | K22: 17 | AL22: Cutlass
C23: 0 | F23: 0 | K23: 17 | AL23: Falchion
C24: 0 | F24: 0 | K24: 17 | AL24: Short sword
C25: 0 | F25: 0 | K25: 17 | AL25: Scimitar
C26: 0 | F26: 0 | K26: 17 | AL26: Arming Sword
F27: 0 | K27: 17 | AL27: Bastard Sword
F28: 0 | K28: 17 | AL28: Great Sword
C29: 0 | F29: 0 | K29: 17 | AL29: Staff
F30: 0 | K30: 17 | AL30: Missile
D31: Boat Journey | AJ31: =SUM(AJ32:AJ33) -> 167.3366667 | AK31: =AJ31/300 -> 0.5577888889
A32: >10+def=Stagger(Str) | B32: =ROUNDUP((X32+Y32)/2,0) -> 3 | C32: =U32 -> 46 | D32: Ogre (small) | E32: =Y32+ROUNDUP(AF32/2,0)+INT(+VLOOKUP(R32,weapons,3,FALSE)*MIN(Z32,8)+VLOOKUP(R32,weapons,4,FALSE)*(AD32))+VLOOKUP(W32,size,4) -> 11 | F32: =Z32-VLOOKUP($W32,size,3) -> 1 | G32: =VLOOKUP(VLOOKUP(R32,weapons,6,FALSE)+VLOOKUP($W32,size,3)+Y32-1,New_damage,2,FALSE) -> d10 / d6 | H32: =IF(S32<>" - ",VLOOKUP(S32,weapons,3,FALSE)+VLOOKUP($W32,size,3)," ") ->  | J32: =INT(VLOOKUP(O32,body_armour,5,FALSE)+Y32+AE32+P32+VLOOKUP(W32,size,6)+(Z32+AD32)/2+VLOOKUP(R32,weapons,5,FALSE)/2 ) -> 10 | K32: =12+P32+VLOOKUP(W32,size,5)+AF32*3 -> 9 | L32: =VLOOKUP(VLOOKUP($O32,body_armour,2,FALSE)+IF($W32>6,INT(VLOOKUP($W32,size,7)),0),Armour_translation,2,FALSE) -> 3/4 | M32: =VLOOKUP(VLOOKUP($O32,body_armour,3,FALSE)+IF($W32>6,INT(VLOOKUP($W32,size,7)),0),Armour_translation,2,FALSE) -> 3/4 | N32: =VLOOKUP(VLOOKUP($O32,body_armour,4,FALSE)+IF($W32>6,INT(VLOOKUP($W32,size,7)),0),Armour_translation,2,FALSE) -> 1/2 | O32: Scale (Leather) | P32: 0 | Q32: =VLOOKUP(R32,weapons,2, FALSE) -> Bludgeon | R32: Club | S32: - | T32: - | U32: =INT(W32+X32*(4.5+AC32))+3 -> 46 | V32: =2*(W32+AC32) -> 26 | W32: 9 | X32: 4 | Y32: 2 | Z32: 6 | AA32: -1 | AB32: -1 | AC32: 4 | AD32: -1 | AE32: -3 | AG32: Stagger | AH32: 2 | AI32: =(5+E32)*(10+VLOOKUP(R32,weapons,6,FALSE)+Y32+F32)*U32*(5+VLOOKUP(O32,body_armour,6,FALSE))/1000*VLOOKUP(AG32,Specials,3,FALSE)+VLOOKUP(AG32,Specials,2,FALSE) -> 117.456 | AJ32: =AH32*AI32*VLOOKUP(AH32,Attackers,2,TRUE) -> 117.456
A33: Neurotoxin (15) | B33: =ROUNDUP((X33+Y33)/2,0) -> 5 | C33: =U33 -> 71 | D33: Giant Cobra | E33: =Y33+ROUNDUP(AF33/2,0)+INT(+VLOOKUP(R33,weapons,3,FALSE)*MIN(Z33,8)+VLOOKUP(R33,weapons,4,FALSE)*(AD33))+VLOOKUP(W33,size,4) -> 8 | F33: =Z33-VLOOKUP($W33,size,3) -> 4 | G33: =VLOOKUP(VLOOKUP(R33,weapons,6,FALSE)+VLOOKUP($W33,size,3)+Y33-1,New_damage,2,FALSE) -> d12 / d10 | H33: =IF(S33<>" - ",VLOOKUP(S33,weapons,3,FALSE)+VLOOKUP($W33,size,3)," ") ->  | I33: =IF(T33<>" - ",VLOOKUP(T33,weapons,3,FALSE)+VLOOKUP($W33,size,3)," ") ->  | J33: =INT(VLOOKUP(O33,body_armour,5,FALSE)+Y33+AE33+P33+VLOOKUP(W33,size,6)+(Z33+AD33)/2+VLOOKUP(R33,weapons,5,FALSE)/2 ) -> 22 | K33: =12+P33+VLOOKUP(W33,size,5)+AF33*3 -> 9 | L33: =VLOOKUP(VLOOKUP($O33,body_armour,2,FALSE)+IF($W33>6,INT(VLOOKUP($W33,size,7)),0),Armour_translation,2,FALSE) -> 3/4 | M33: =VLOOKUP(VLOOKUP($O33,body_armour,3,FALSE)+IF($W33>6,INT(VLOOKUP($W33,size,7)),0),Armour_translation,2,FALSE) -> 1 | N33: =VLOOKUP(VLOOKUP($O33,body_armour,4,FALSE)+IF($W33>6,INT(VLOOKUP($W33,size,7)),0),Armour_translation,2,FALSE) -> 1 | O33: Scales | P33: 0 | Q33: =VLOOKUP(R33,weapons,2, FALSE) -> Pierce | R33: Bite | S33: - | T33: - | U33: =INT(W33+X33*(4.5+AC33))-2 -> 71 | V33: =2*(W33+AC33) -> 32 | W33: 10 | X33: 6 | Y33: 3 | Z33: 9 | AA33: -3 | AB33: -2 | AC33: 6 | AD33: 2 | AE33: 2 | AG33: Poison | AH33: 1 | AI33: =(5+E33)*(10+VLOOKUP(R33,weapons,6,FALSE)+Y33+F33)*U33*(5+VLOOKUP(O33,body_armour,6,FALSE))/1000*VLOOKUP(AG33,Specials,3,FALSE)+VLOOKUP(AG33,Specials,2,FALSE) -> 199.5226667 | AJ33: =AH33*AI33*VLOOKUP(AH33,Attackers,2,TRUE) -> 49.88066667
B34: =ROUNDUP((X34+Y34)/2,0) -> 2 | C34: =U34 -> 14 | D34: Seaman | E34: =Y34+ROUNDUP(AF34/2,0)+INT(+VLOOKUP(R34,weapons,3,FALSE)*MIN(Z34,8)+VLOOKUP(R34,weapons,4,FALSE)*(AD34))+VLOOKUP(W34,size,4) -> 3 | F34: =Z34-VLOOKUP($W34,size,3) -> 1 | G34: =VLOOKUP(VLOOKUP(R34,weapons,6,FALSE)+VLOOKUP($W34,size,3)+Y34-1,New_damage,2,FALSE) -> d6 / d4 | J34: =INT(VLOOKUP(O34,body_armour,5,FALSE)+Y34+AE34+P34+VLOOKUP(W34,size,6)+(Z34+AD34)/2+VLOOKUP(R34,weapons,5,FALSE)/2 ) -> 12 | K34: 12 | L34: =VLOOKUP(VLOOKUP($O34,body_armour,2,FALSE)+IF($W34>6,INT(VLOOKUP($W34,size,7)),0),Armour_translation,2,FALSE) -> 1 | M34: =VLOOKUP(VLOOKUP($O34,body_armour,3,FALSE)+IF($W34>6,INT(VLOOKUP($W34,size,7)),0),Armour_translation,2,FALSE) -> 1.5 | N34: =VLOOKUP(VLOOKUP($O34,body_armour,4,FALSE)+IF($W34>6,INT(VLOOKUP($W34,size,7)),0),Armour_translation,2,FALSE) -> 1.5 | O34: Leather | P34: 0 | Q34: =VLOOKUP(R34,weapons,2, FALSE) -> Chop | R34: Cutlass | S34: - | T34: - | U34: =INT(W34+X34*(4.5+AC34))+3 -> 14 | V34: =2*(W34+AC34) -> 14 | W34: 6 | X34: 1 | Y34: 2 | Z34: 1 | AA34: -1 | AB34: 0 | AC34: 1 | AD34: 0 | AE34: 0 | AH34: 0 | AI34: =(5+E34)*(10+VLOOKUP(R34,weapons,6,FALSE)+Y34+F34)*U34*(5+VLOOKUP(O34,body_armour,6,FALSE))/1000*VLOOKUP(AG34,Specials,3,FALSE)+VLOOKUP(AG34,Specials,2,FALSE) -> 17.38986667 | AJ34: =AH34*AI34*VLOOKUP(AH34,Attackers,2,TRUE) -> 0
B35: =ROUNDUP((X35+Y35)/2,0) -> 4 | C35: =U35 -> 25 | D35: Captain | E35: =Y35+ROUNDUP(AF35/2,0)+INT(+VLOOKUP(R35,weapons,3,FALSE)*MIN(Z35,8)+VLOOKUP(R35,weapons,4,FALSE)*(AD35))+VLOOKUP(W35,size,4) -> 5 | F35: =Z35-VLOOKUP($W35,size,3) -> 1 | G35: =VLOOKUP(VLOOKUP(R35,weapons,6,FALSE)+VLOOKUP($W35,size,3)+Y35-1,New_damage,2,FALSE) -> d10 / d6 | J35: =INT(VLOOKUP(O35,body_armour,5,FALSE)+Y35+AE35+P35+VLOOKUP(W35,size,6)+(Z35+AD35)/2+VLOOKUP(R35,weapons,5,FALSE)/2 ) -> 16 | K35: 12 | L35: =VLOOKUP(VLOOKUP($O35,body_armour,2,FALSE)+IF($W35>6,INT(VLOOKUP($W35,size,7)),0),Armour_translation,2,FALSE) -> 1 | M35: =VLOOKUP(VLOOKUP($O35,body_armour,3,FALSE)+IF($W35>6,INT(VLOOKUP($W35,size,7)),0),Armour_translation,2,FALSE) -> 1.5 | N35: =VLOOKUP(VLOOKUP($O35,body_armour,4,FALSE)+IF($W35>6,INT(VLOOKUP($W35,size,7)),0),Armour_translation,2,FALSE) -> 1.5 | O35: Leather | P35: 0 | Q35: =VLOOKUP(R35,weapons,2, FALSE) -> Slash | R35: Arming Sword | S35: - | T35: - | U35: =INT(W35+X35*(4.5+AC35))+3 -> 25 | V35: =2*(W35+AC35) -> 14 | W35: 6 | X35: 3 | Y35: 4 | Z35: 1 | AA35: -1 | AB35: 0 | AC35: 1 | AD35: 1 | AE35: 1 | AH35: 0 | AI35: =(5+E35)*(10+VLOOKUP(R35,weapons,6,FALSE)+Y35+F35)*U35*(5+VLOOKUP(O35,body_armour,6,FALSE))/1000*VLOOKUP(AG35,Specials,3,FALSE)+VLOOKUP(AG35,Specials,2,FALSE) -> 45.66666667 | AJ35: =AH35*AI35*VLOOKUP(AH35,Attackers,2,TRUE) -> 0
D36: Saltmarsh | AJ36: =SUM(AJ37:AJ42) -> 1031.228 | AK36: =AJ36/300 -> 3.437426667
B37: =ROUNDUP((X37+Y37)/2,0) -> 2 | C37: =U37 -> 20 | D37: Smuggler | E37: =Y37+ROUNDUP(AF37/2,0)+INT(+VLOOKUP(R37,weapons,3,FALSE)*MIN(Z37,8)+VLOOKUP(R37,weapons,4,FALSE)*(AD37))+VLOOKUP(W37,size,4) -> 3 | F37: =Z37-VLOOKUP($W37,size,3) -> 1 | G37: =VLOOKUP(VLOOKUP(R37,weapons,6,FALSE)+VLOOKUP($W37,size,3)+Y37-1,New_damage,2,FALSE) -> d6 / d4 | H37: =IF(S37<>" - ",VLOOKUP(S37,weapons,3,FALSE)+VLOOKUP($W37,size,3)," ") ->  | I37: =IF(T37<>" - ",VLOOKUP(T37,weapons,3,FALSE)+VLOOKUP($W37,size,3)," ") ->  | J37: =INT(VLOOKUP(O37,body_armour,5,FALSE)+Y37+AE37+P37+VLOOKUP(W37,size,6)+(Z37+AD37)/2+VLOOKUP(R37,weapons,5,FALSE)/2 ) -> 12 | K37: =12+P37+VLOOKUP(W37,size,5)+AF37*3 -> 12 | L37: =VLOOKUP(VLOOKUP($O37,body_armour,2,FALSE)+IF($W37>6,INT(VLOOKUP($W37,size,7)),0),Armour_translation,2,FALSE) -> 3/4 | M37: =VLOOKUP(VLOOKUP($O37,body_armour,3,FALSE)+IF($W37>6,INT(VLOOKUP($W37,size,7)),0),Armour_translation,2,FALSE) -> 1 | N37: =VLOOKUP(VLOOKUP($O37,body_armour,4,FALSE)+IF($W37>6,INT(VLOOKUP($W37,size,7)),0),Armour_translation,2,FALSE) -> 3/4 | O37: Boiled Leather | P37: 0 | Q37: =VLOOKUP(R37,weapons,2, FALSE) -> Pierce | R37: Short sword | S37: - | T37: - | U37: =INT(W37+X37*(4.5+AC37))+3 -> 20 | V37: =2*(W37+AC37) -> 14 | W37: 6 | X37: 2 | Y37: 2 | Z37: 1 | AA37: -1 | AB37: -1 | AC37: 1 | AD37: 2 | AE37: 1 | AH37: 16 | AI37: =(5+E37)*(10+VLOOKUP(R37,weapons,6,FALSE)+Y37+F37)*U37*(5+VLOOKUP(O37,body_armour,6,FALSE))/1000*VLOOKUP(AG37,Specials,3,FALSE)+VLOOKUP(AG37,Specials,2,FALSE) -> 27.38133333 | AJ37: =AH37*AI37*VLOOKUP(AH37,Attackers,2,TRUE) -> 525.7216
B38: =ROUNDUP((X38+Y38)/2,0) -> 4 | C38: 31 | D38: Mate / Bosun | E38: 5 | F38: 2 | G38: d10 / d8 | J38: 14 | K38: 12 | L38: 3/4 | M38: 1 | N38: 3/4 | O38: Boiled Leather | P38: 0 | Q38: Slash | R38: Scimitar | S38: - | T38: - | U38: 31 | V38: 14 | W38: 6 | X38: 4 | Y38: 4 | Z38: 2 | AA38: -1 | AB38: 0 | AC38: 1 | AD38: 0 | AE38: 2 | AH38: -1 | AI38: 68.65466667 | AJ38: 68.65466667
B39: =ROUNDUP((X39+Y39)/2,0) -> 6 | C39: 48 | D39: Captain | E39: 7 | F39: 3 | G39: 2d12 | J39: 16 | K39: 12 | L39: 1/4 | M39: 1/2 | N39: 3/4 | O39: Mail Hauberk | P39: 0 | Q39: Slash | R39: Scimitar | S39: - | T39: - | U39: 48 | V39: 16 | W39: 6 | X39: 6 | Y39: 6 | Z39: 3 | AA39: 1 | AB39: 1 | AC39: 2 | AD39: 0 | AE39: 2 | AH39: -1 | AI39: 166.08 | AJ39: 166.08
B40: =ROUNDUP((X40+Y40)/2,0) -> 2 | C40: 14 | D40: Lizardman | E40: 5 | F40: 4 | G40: d10 / d6 | J40: 18 | K40: 12 | L40: 1 | M40: 1.5 | N40: 1.5 | O40: Leather | P40: 0 | Q40: Pierce | R40: Spear 2 hands | S40: - | T40: - | U40: 14 | V40: 14 | W40: 6 | X40: 1 | Y40: 3 | Z40: 4 | AA40: 1 | AB40: 0 | AC40: 1 | AD40: 2 | AE40: 1 | AH40: 4 | AI40: 29.40933333 | AJ40: 117.6373333
B41: =VLOOKUP(X41,Save,2,FALSE) -> 2 | C41: 22 | D41: Snablet | E41: 1 | F41: -1 | G41: d4 | J41: 11 | K41: 12 | L41: 1 | M41: 1.5 | N41: 1.5 | O41: Leather | P41: 0 | Q41: Bludgeon | R41: Club | S41: - | T41: - | U41: 22 | V41: 12 | W41: 6 | X41: 3 | Y41: 2 | Z41: -1 | AA41: 2 | AB41: 1 | AC41: 0 | AD41: 1 | AE41: 2 | AG41: Mage 3 | AH41: -1 | AI41: 75.6728 | AJ41: 75.6728
B42: =VLOOKUP(X42,Save,2,FALSE) -> 3 | C42: 23 | D42: Punketah | E42: 1 | F42: -1 | G42: d4 | J42: 10 | K42: 12 | L42: 1 | M42: 1 | N42: 3/4 | O42: Scale (Leather) | P42: 0 | Q42: Bludgeon | R42: Club | S42: - | T42: - | U42: 23 | V42: 10 | W42: 6 | X42: 4 | Y42: 2 | Z42: -1 | AA42: 3 | AB42: 0 | AC42: -1 | AD42: 2 | AE42: 2 | AG42: Mage 3 | AH42: -1 | AI42: 77.4616 | AJ42: 77.4616
B43: =ROUNDUP((X43+Y43)/2,0) -> 3 | C43: 21 | D43: Gnoll | E43: 7 | F43: 2 | G43: 2d12 | J43: 11 | K43: 11 | L43: 1/4 | M43: 1/3 | N43: 1/2 | O43: Coat of Plates | P43: 0 | Q43: =VLOOKUP(R43,weapons,2, FALSE) -> Slash | R43: Battle-axe 2 hands | S43: - | T43: - | U43: 21 | V43: =2*(W43+AC43) -> 16 | W43: 7 | X43: 2 | Y43: 3 | Z43: 3 | AA43: -1 | AB43: 0 | AC43: 1 | AD43: 0 | AE43: 0 | AH43: 4 | AI43: 70.7112 | AJ43: 282.8448
A44: Poison | B44: =ROUNDUP((X44+Y44)/2,0) -> 2 | C44: 10 | D44: Spider | E44: 6 | F44: 3 | G44: d3 | J44: 15 | K44: 14 | L44: 2 | M44: 2 | N44: 2 | O44: - | P44: 0 | Q44: Pierce | R44: Bite | S44: - | T44: - | U44: =INT(W44+X44*(4.5+AC44))-2 -> 10 | V44: 6 | W44: 3 | X44: 2 | Y44: 2 | Z44: 1 | AA44: -3 | AB44: -2 | AC44: 0 | AD44: 6 | AE44: 3 | AG44: poison | AH44: -1 | AI44: 27.424 | AJ44: 27.424
B45: =ROUNDUP((X45+Y45)/2,0) -> 2 | C45: 5 | D45: Stirge | E45: 6 | F45: 1 | G45: d4 | J45: 12 | K45: 23 | L45: 2 | M45: 2 | N45: 2 | O45: - | P45: 0 | Q45: Pierce | R45: Bite | S45: - | T45: - | U45: =INT(W45+X45*(4.5+AC45))-2 -> 5 | V45: 6 | W45: 3 | X45: 1 | Y45: 3 | Z45: -1 | AA45: -1 | AB45: 0 | AC45: 0 | AD45: 3 | AE45: 1 | AF45: 3 | AH45: 6 | AI45: 7.48 | AJ45: 53.856
B46: =VLOOKUP(X46,Save,2,FALSE) -> 2 | C46: =U46 -> 22 | D46: Snablet | E46: =Y46+ROUNDUP(AF46/2,0)+INT(+VLOOKUP(R46,weapons,3,FALSE)*MIN(Z46,8)+VLOOKUP(R46,weapons,4,FALSE)*(AD46))+VLOOKUP(W46,size,4) -> 1 | F46: =Z46-VLOOKUP($W46,size,3) -> -1 | G46: =VLOOKUP(VLOOKUP(R46,weapons,6,FALSE)+VLOOKUP($W46,size,3)+Y46-1,New_damage,2,FALSE) -> d4 | H46: =IF(S46<>" - ",VLOOKUP(S46,weapons,3,FALSE)+VLOOKUP($W46,size,3)," ") ->  | J46: =INT(VLOOKUP(O46,body_armour,5,FALSE)+Y46+AE46+P46+VLOOKUP(W46,size,6)+(Z46+AD46)/2+VLOOKUP(R46,weapons,5,FALSE)/2 ) -> 11 | K46: =12+P46+VLOOKUP(W46,size,5)+AF46*3 -> 12 | L46: =VLOOKUP(VLOOKUP($O46,body_armour,2,FALSE)+IF($W46>6,INT(VLOOKUP($W46,size,7)),0),Armour_translation,2,FALSE) -> 1 | M46: =VLOOKUP(VLOOKUP($O46,body_armour,3,FALSE)+IF($W46>6,INT(VLOOKUP($W46,size,7)),0),Armour_translation,2,FALSE) -> 1.5 | N46: =VLOOKUP(VLOOKUP($O46,body_armour,4,FALSE)+IF($W46>6,INT(VLOOKUP($W46,size,7)),0),Armour_translation,2,FALSE) -> 1.5 | O46: Leather | P46: 0 | Q46: Bludgeon | R46: Club | S46: - | T46: - | U46: =INT(W46+X46*(4.5+AC46))+3 -> 22 | V46: 12 | W46: 6 | X46: 3 | Y46: 2 | Z46: -1 | AA46: 2 | AB46: 1 | AC46: 0 | AD46: 1 | AE46: 2 | AG46: Mage 2 | AH46: -1 | AI46: =(5+E46)*(10+VLOOKUP(R46,weapons,6,FALSE)+Y46+F46)*U46*(5+VLOOKUP(O46,body_armour,6,FALSE))/1000*VLOOKUP(AG46,Specials,3,FALSE)+VLOOKUP(AG46,Specials,2,FALSE) -> 45.6728 | AJ46: =AH46*AI46*VLOOKUP(AH46,Attackers,2,TRUE) -> 45.6728
B47: =VLOOKUP(X47,Save,2,FALSE) -> 3 | C47: =U47 -> 23 | D47: Punketah | E47: =Y47+ROUNDUP(AF47/2,0)+INT(+VLOOKUP(R47,weapons,3,FALSE)*MIN(Z47,8)+VLOOKUP(R47,weapons,4,FALSE)*(AD47))+VLOOKUP(W47,size,4) -> 1 | F47: =Z47-VLOOKUP($W47,size,3) -> -1 | G47: =VLOOKUP(VLOOKUP(R47,weapons,6,FALSE)+VLOOKUP($W47,size,3)+Y47-1,New_damage,2,FALSE) -> d4 | J47: =INT(VLOOKUP(O47,body_armour,5,FALSE)+Y47+AE47+P47+VLOOKUP(W47,size,6)+(Z47+AD47)/2+VLOOKUP(R47,weapons,5,FALSE)/2 ) -> 10 | K47: =12+P47+VLOOKUP(W47,size,5)+AF47*3 -> 12 | L47: =VLOOKUP(VLOOKUP($O47,body_armour,2,FALSE)+IF($W47>6,INT(VLOOKUP($W47,size,7)),0),Armour_translation,2,FALSE) -> 1 | M47: =VLOOKUP(VLOOKUP($O47,body_armour,3,FALSE)+IF($W47>6,INT(VLOOKUP($W47,size,7)),0),Armour_translation,2,FALSE) -> 1 | N47: =VLOOKUP(VLOOKUP($O47,body_armour,4,FALSE)+IF($W47>6,INT(VLOOKUP($W47,size,7)),0),Armour_translation,2,FALSE) -> 3/4 | O47: Scale (Leather) | P47: 0 | Q47: Bludgeon | R47: Club | S47: - | T47: - | U47: =INT(W47+X47*(4.5+AC47))+3 -> 23 | V47: 10 | W47: 6 | X47: 4 | Y47: 2 | Z47: -1 | AA47: 3 | AB47: 0 | AC47: -1 | AD47: 2 | AE47: 2 | AG47: Mage 3 | AH47: -1 | AI47: 77.4616 | AJ47: 77.4616
D48: Ned | E48: =Y48+ROUNDUP(AF48/2,0)+INT(+VLOOKUP(R48,weapons,3,FALSE)*MIN(Z48,8)+VLOOKUP(R48,weapons,4,FALSE)*(AD48))+VLOOKUP(W48,size,4) -> 2 | F48: =Z48-VLOOKUP($W48,size,3) -> 0 | G48: =VLOOKUP(VLOOKUP(R48,weapons,6,FALSE)+VLOOKUP($W48,size,3)+Y48-1,New_damage,2,FALSE) -> d4 | J48: =INT(VLOOKUP(O48,body_armour,5,FALSE)+Y48+AE48+P48+VLOOKUP(W48,size,6)+(Z48+AD48)/2+VLOOKUP(R48,weapons,5,FALSE)/2 ) -> 13 | K48: =12+P48+VLOOKUP(W48,size,5)+AF48*3 -> 12 | L48: =VLOOKUP(VLOOKUP($O48,body_armour,2,FALSE)+IF($W48>6,INT(VLOOKUP($W48,size,7)),0),Armour_translation,2,FALSE) -> 2 | M48: =VLOOKUP(VLOOKUP($O48,body_armour,3,FALSE)+IF($W48>6,INT(VLOOKUP($W48,size,7)),0),Armour_translation,2,FALSE) -> 2 | N48: =VLOOKUP(VLOOKUP($O48,body_armour,4,FALSE)+IF($W48>6,INT(VLOOKUP($W48,size,7)),0),Armour_translation,2,FALSE) -> 2 | O48: - | P48: 0 | Q48: Bludgeon | R48: Club | S48: - | T48: - | U48: =INT(W48+X48*(4.5+AC48))+3 -> 25 | V48: 14 | W48: 6 | X48: 3 | Y48: 2 | Z48: 0 | AA48: -1 | AB48: 0 | AC48: 1 | AD48: 2 | AE48: 2 | AH48: -1 | AI48: 19.6 | AJ48: 19.6
D49: Belreeve | AJ49: =SUM(AJ50:AJ58) -> 593.1102333 | AK49: =AJ49/300 -> 1.977034111
A50: Mage PP=7 | B50: =VLOOKUP(X50,Save,2,FALSE) -> 2 | C50: =U50 -> 19 | D50: Belreeve | E50: =Y50+ROUNDUP(AF50/2,0)+INT(+VLOOKUP(R50,weapons,3,FALSE)*MIN(Z50,8)+VLOOKUP(R50,weapons,4,FALSE)*(AD50))+VLOOKUP(W50,size,4) -> 3 | F50: =Z50-VLOOKUP($W50,size,3) -> -1 | G50: =VLOOKUP(VLOOKUP(R50,weapons,6,FALSE)+VLOOKUP($W50,size,3)+Y50-1,New_damage,2,FALSE) -> 2d4 | H50: =IF(S50<>" - ",VLOOKUP(S50,weapons,3,FALSE)+VLOOKUP($W50,size,3)," ") ->  | I50: =IF(T50<>" - ",VLOOKUP(T50,weapons,3,FALSE)+VLOOKUP($W50,size,3)," ") ->  | J50: =INT(VLOOKUP(O50,body_armour,5,FALSE)+Y50+AE50+P50+VLOOKUP(W50,size,6)+(Z50+AD50)/2+VLOOKUP(R50,weapons,5,FALSE)/2 ) -> 13 | K50: =12+P50+VLOOKUP(W50,size,5)+AF50*3 -> 12 | L50: =VLOOKUP(VLOOKUP($O50,body_armour,2,FALSE)+IF($W50>6,INT(VLOOKUP($W50,size,7)),0),Armour_translation,2,FALSE) -> 2 | M50: =VLOOKUP(VLOOKUP($O50,body_armour,3,FALSE)+IF($W50>6,INT(VLOOKUP($W50,size,7)),0),Armour_translation,2,FALSE) -> 2 | N50: =VLOOKUP(VLOOKUP($O50,body_armour,4,FALSE)+IF($W50>6,INT(VLOOKUP($W50,size,7)),0),Armour_translation,2,FALSE) -> 2 | O50: - | Q50: =VLOOKUP(R50,weapons,2, FALSE) -> Bludgeon | R50: Staff | S50: - | T50: - | U50: =INT(W50+X50*(4.5+AC50))+3 -> 19 | V50: =2*(W50+AC50) -> 10 | W50: 6 | X50: 3 | Y50: 1 | Z50: -1 | AA50: 2 | AB50: 1 | AC50: -1 | AD50: 2 | AE50: 1 | AG50: Mage 2 | AH50: -1 | AI50: =(5+E50)*(10+VLOOKUP(R50,weapons,6,FALSE)+Y50+F50)*U50*(5+VLOOKUP(O50,body_armour,6,FALSE))/1000*VLOOKUP(AG50,Specials,3,FALSE)+VLOOKUP(AG50,Specials,2,FALSE) -> 47.024 | AJ50: 47.024
B51: =VLOOKUP(X51,Save,2,FALSE) -> 3 | C51: 37 | D51: Slumper | E51: 8 | F51: -1 | G51: d10 / d6 | J51: 10 | K51: 10 | L51: 1/4 | M51: 1/3 | N51: 1/2 | O51: Thick Hide | Q51: =VLOOKUP(R51,weapons,2, FALSE) -> Bludgeon | R51: Club | S51: - | T51: - | U51: 37 | V51: 20 | W51: 8 | X51: 4 | Y51: 4 | Z51: 2 | AA51: -2 | AB51: -2 | AC51: 2 | AD51: 0 | AE51: -2 | AH51: -1 | AI51: 82.251 | AJ51: 82.251
B52: =ROUNDUP((X52+Y52)/2,0) -> 2 | C52: 9 | D52: Goblin | E52: 2 | F52: 3 | G52: 2d4 | J52: 15 | K52: 16 | L52: 3/4 | M52: 1 | N52: 3/4 | O52: Boiled Leather | P52: 3 | Q52: =VLOOKUP(R52,weapons,2, FALSE) -> Pierce | R52: Short sword | S52: - | T52: - | U52: 9 | V52: 8 | W52: 4 | X52: 0.5 | Y52: 2 | Z52: 2 | AA52: -1 | AB52: -1 | AC52: 0 | AD52: 1 | AE52: 2 | AH52: 10 | AI52: 12.0498 | AJ52: 144.5976
B53: 1 | C53: 9 | D53: Goblin - archer | E53: 3 | F53: 2 | G53: d4 | J53: 12 | K53: 13 | L53: 1 | M53: 1 | N53: 1 | O53: Padded | P53: 0 | Q53: Pierce | R53: Bow - Short | S53: - | T53: - | U53: 9 | V53: 8 | W53: 4 | X53: 0.5 | Y53: 1 | Z53: 1 | AA53: -1 | AB53: -1 | AC53: 0 | AD53: 3 | AE53: 2 | AH53: 2 | AI53: 11.7504 | AJ53: 11.7504
B54: 1 | C54: 4 | D54: Giant Bats | E54: 5 | F54: 2 | G54: d2 | J54: 12 | K54: 27 | L54: 1 | M54: 1.5 | N54: 1.5 | O54: Leather | P54: 0 | Q54: Pierce | R54: Bite | S54: - | T54: - | U54: =INT(W54+X54*(4.5+AC54))-2 -> 4 | V54: 4 | W54: 2 | X54: 1 | Y54: 1 | Z54: 0 | AA54: -2 | AB54: -2 | AC54: 0 | AD54: 3 | AE54: 3 | AF54: 4 | AH54: 6 | AI54: 5.845333333 | AJ54: 42.0864
B55: 4 | C55: 23 | D55: Goblin - leader | E55: 5 | F55: 4 | G55: d8 / d6 | J55: 16 | K55: 16 | L55: 1/4 | M55: 1/2 | N55: 3/4 | O55: Mail Hauberk | P55: 3 | Q55: Bludgeon | R55: Morning Star-Flail | S55: - | T55: - | U55: =INT(W55+X55*(4.5+AC55))+3 -> 23 | V55: 10 | W55: 4 | X55: 3 | Y55: 4 | Z55: 3 | AA55: -1 | AB55: 0 | AC55: 1 | AD55: 2 | AE55: 2 | AH55: -1 | AI55: 61.01133333 | AJ55: 61.01133333
B56: 2 | C56: 21 | D56: HobGoblin | E56: 5 | F56: 3 | G56: d6 / d4 | J56: 15 | K56: 15 | L56: 3/4 | M56: 1 | N56: 3/4 | O56: Boiled Leather | P56: 3 | Q56: Pierce | R56: Morning Star | S56: - | T56: - | U56: 21 | V56: 14 | W56: 5 | X56: 2 | Y56: 2 | Z56: 3 | AA56: -1 | AB56: -1 | AC56: 2 | AD56: 1 | AE56: 2 | AH56: 3 | AI56: 40.166 | AJ56: 90.3735
B57: 2 | C57: =U57 -> 14 | D57: Skeleton | E57: 3 | F57: 0 | G57: 2d4 | J57: 15 | K57: 14 | L57: 2 | M57: 2 | N57: 2 | O57: - | P57: 2 | Q57: Chop | R57: Cleaver | S57: - | T57: - | U57: =INT(W57+X57*(4.5+AC57))+3 -> 14 | V57: 14 | W57: 6 | X57: 1 | Y57: 2 | Z57: 0 | AA57: =--2 -> 2 | AB57: 0 | AC57: 1 | AD57: 2 | AE57: 0 | AH57: 6 | AI57: 13.44 | AJ57: 96.768 | AL57: -3 | AM57: 4 | AO57: Claw | AP57: Leather | AQ57: Leather
B58: 2 | C58: =U58 -> 22 | D58: Zombie | E58: 0 | F58: 2 | G58: d4 | J58: 7 | K58: 12 | L58: 1 | M58: 1 | N58: 1 | O58: Hide | P58: 0 | Q58: Chop | R58: Cleaver | S58: - | T58: - | U58: =INT(W58+X58*(4.5+AC58))+3 -> 22 | V58: 16 | W58: 6 | X58: 2 | Y58: 1 | Z58: 2 | AA58: -3 | AB58: -2 | AC58: 2 | AD58: -3 | AE58: -2 | AH58: 2 | AI58: 17.248 | AJ58: =AH58*AI58*VLOOKUP(AH58,Attackers,2,TRUE) -> 17.248
D59: Parnassus | AJ59: =SUM(AJ60:AJ67) -> 1151.68573 | AK59: =AJ59/300 -> 3.838952433
B60: =ROUNDUP((X60+Y60)/2,0) -> 2 | C60: =U60 -> 14 | D60: Skeleton | E60: =Y60+ROUNDUP(AF60/2,0)+INT(+VLOOKUP(R60,weapons,3,FALSE)*MIN(Z60,8)+VLOOKUP(R60,weapons,4,FALSE)*(AD60))+VLOOKUP(W60,size,4) -> 3 | F60: =Z60-VLOOKUP($W60,size,3) -> 0 | G60: =VLOOKUP(VLOOKUP(R60,weapons,6,FALSE)+VLOOKUP($W60,size,3)+Y60-1,New_damage,2,FALSE) -> 2d4 | H60: =IF(S60<>" - ",VLOOKUP(S60,weapons,3,FALSE)+VLOOKUP($W60,size,3)," ") ->  | I60: =IF(T60<>" - ",VLOOKUP(T60,weapons,3,FALSE)+VLOOKUP($W60,size,3)," ") ->  | J60: =INT(VLOOKUP(O60,body_armour,5,FALSE)+Y60+AE60+P60+VLOOKUP(W60,size,6)+(Z60+AD60)/2+VLOOKUP(R60,weapons,5,FALSE)/2 ) -> 15 | K60: =12+P60+VLOOKUP(W60,size,5)+AF60*3 -> 14 | L60: =VLOOKUP(VLOOKUP($O60,body_armour,2,FALSE)+IF($W60>6,INT(VLOOKUP($W60,size,7)),0),Armour_translation,2,FALSE) -> 2 | M60: =VLOOKUP(VLOOKUP($O60,body_armour,3,FALSE)+IF($W60>6,INT(VLOOKUP($W60,size,7)),0),Armour_translation,2,FALSE) -> 2 | N60: =VLOOKUP(VLOOKUP($O60,body_armour,4,FALSE)+IF($W60>6,INT(VLOOKUP($W60,size,7)),0),Armour_translation,2,FALSE) -> 2 | O60: - | P60: 2 | Q60: =VLOOKUP(R60,weapons,2, FALSE) -> Chop | R60: Cleaver | S60: - | T60: - | U60: =INT(W60+X60*(4.5+AC60))+3 -> 14 | V60: =2*(W60+AC60) -> 14 | W60: 6 | X60: 1 | Y60: 2 | Z60: 0 | AA60: =--2 -> 2 | AB60: 0 | AC60: 1 | AD60: 2 | AE60: 0 | AH60: 7 | AI60: =(5+E60)*(10+VLOOKUP(R60,weapons,6,FALSE)+Y60+F60)*U60*(5+VLOOKUP(O60,body_armour,6,FALSE))/1000*VLOOKUP(AG60,Specials,3,FALSE)+VLOOKUP(AG60,Specials,2,FALSE) -> 13.44 | AJ60: =AH60*AI60*VLOOKUP(AH60,Attackers,2,TRUE) -> 112.896 | AL60: -3 | AM60: 4 | AO60: Claw | AP60: Leather | AQ60: Leather
B61: =ROUNDUP((X61+Y61)/2,0) -> 2 | C61: =U61 -> 22 | D61: Zombie | E61: 0 | F61: 2 | G61: d4 | J61: 7 | K61: 12 | L61: 1 | M61: 1 | N61: 1 | O61: Hide | P61: 0 | Q61: Chop | R61: Cleaver | S61: - | T61: - | U61: 22 | V61: 16 | W61: 6 | X61: 2 | Y61: 1 | Z61: 2 | AA61: -3 | AB61: -2 | AC61: 2 | AD61: -3 | AE61: -2 | AH61: 7 | AI61: 17.248 | AJ61: 144.8832
B62: =ROUNDUP((X62+Y62)/2,0) -> 2 | C62: =U62 -> 9 | D62: Goblin | E62: 2 | F62: 3 | G62: 2d4 | J62: 15 | K62: 16 | L62: 3/4 | M62: 1 | N62: 3/4 | O62: Boiled Leather | P62: 3 | Q62: Pierce | R62: Short sword | S62: - | T62: - | U62: 9 | V62: 8 | W62: 4 | X62: 0.5 | Y62: 2 | Z62: 2 | AA62: -1 | AB62: -1 | AC62: 0 | AD62: 1 | AE62: 2 | AH62: 6 | AI62: 12.0498 | AJ62: 86.75856
B63: =ROUNDUP((X63+Y63)/2,0) -> 2 | C63: =U63 -> 18 | D63: BugBear | E63: 7 | F63: 5 | G63: d6 / d4 | J63: 13 | K63: 14 | L63: 1 | M63: 1 | N63: 3/4 | O63: Scale (Leather) | P63: 2 | Q63: Pierce | R63: Morning Star | S63: - | T63: - | U63: 18 | V63: 12 | W63: 6 | X63: 2 | Y63: 2 | Z63: 5 | AA63: 1 | AB63: -2 | AC63: 0 | AD63: 1 | AE63: 0 | AH63: 3 | AI63: 44.1504 | AJ63: 99.3384 | AL63: 8 | AM63: 29 | AO63: Battle-axe 2 hands | AP63: Hide
B64: =ROUNDUP((X64+Y64)/2,0) -> 2 | C64: =U64 -> 21 | D64: HobGoblin | E64: 5 | F64: 3 | G64: d6 / d4 | J64: 15 | K64: 15 | L64: 3/4 | M64: 1 | N64: 3/4 | O64: Boiled Leather | P64: 3 | Q64: Pierce | R64: Morning Star | S64: - | T64: - | U64: 21 | V64: 14 | W64: 5 | X64: 2 | Y64: 2 | Z64: 3 | AA64: -1 | AB64: -1 | AC64: 2 | AD64: 1 | AE64: 2 | AH64: 3 | AI64: 40.166 | AJ64: 90.3735
B65: =VLOOKUP(X65,Save,2,FALSE) -> 3 | C65: 15 | D65: Abomination | E65: 11 | F65: 2 | G65: d10 / d6 | J65: 12 | K65: 10 | L65: 1/4 | M65: 1/3 | N65: 1/2 | O65: Thick Hide | Q65: Bludgeon | R65: Club | S65: - | T65: - | U65: 37 | V65: 20 | W65: 8 | X65: 4 | Y65: 4 | Z65: 5 | AA65: -2 | AB65: -2 | AC65: 2 | AD65: 0 | AE65: -2 | AH65: 2 | AI65: 121.4784 | AJ65: 121.4784
A66: Necro | B66: =ROUNDUP((X66+Y66)/2,0) -> 2 | C66: 10 | D66: Necromancer | E66: 2 | F66: -2 | G66: d4 | J66: 11 | K66: 12 | L66: 1 | M66: 1.5 | N66: 1.5 | O66: Leather | Q66: Pierce | R66: Dagger | U66: 18 | V66: 20 | W66: 6 | X66: 2 | Y66: 1 | Z66: -2 | AA66: 3 | AB66: 0 | AC66: 0 | AD66: 1 | AE66: 2 | AG66: Priest 3 | AH66: 6 | AI66: 63.8096 | AJ66: 459.42912
A67: Necro | B67: =ROUNDUP((X67+Y67)/2,0) -> 3 | C67: 26 | D67: Parnassus | E67: 6 | F67: 2 | G67: d8 / d6 | J67: 19 | K67: 10 | L67: 3/4 | M67: 1 | N67: 1 | O67: Leather | Q67: Pierce | R67: Dagger | U67: 27 | V67: 21 | W67: 8 | X67: 3 | Y67: 2 | Z67: 5 | AA67: 4 | AB67: 1 | AC67: 1 | AD67: 2 | AE67: 3 | AG67: Priest 4 | AH67: 1 | AI67: 146.1142 | AJ67: 36.52855

Sheet Hero Points
A1: Tizun Thane | C1: Kugnar | D1: Desairy | E1: Gleb | F1: Thrud | G1: Frank
A2: Monsters | B2: 31
A3: Investigation of farmhouses | B3: 1
A4: Canyon rocks | B4: 1 | D4: 1
A5: Iron Golem/ getting in | B5: 1 | E5: 1 | F5: 1
A6: Tizun's ring | B6: 2
A7: Sleep gas | B7: 2
A8: Nandies | B8: 1
A9: Fireplace climbing / escape | E9: 1
A10: Carbuncle | C10: 1 | E10: 1
A11: Almost finding treasure | D11: 1
A12: Final Battle
A13: Completing Adventure | B13: 5
B14: =SUM(B2:B13) -> 44 | C14: =SUM(C3:C13)+$B14 -> 45 | D14: =SUM(D3:D13)+$B14 -> 46 | E14: =SUM(E3:E13)+$B14 -> 47 | F14: =SUM(F3:F13)+$B14 -> 45 | G14: =(SUM(G3:G13)+$B14)*1.1 -> 48.4
B18: All | C18: Orik | D18: Hussk | E18: Crusty | F18: Faith | G18: Hazel
A19: Belreeve
A20: Monsters | B20: 32
A21: Roleplaying | C21: 2 | D21: 2 | E21: 4 | F21: 2 | G21: 2
A22: Money Incedent | E22: 1 | G22: 1
A23: Goblin Tree | F23: 1
A24: Goblin leader+Guards | C24: 1 | G24: 1
A25: Strategy | E25: 1 | F25: 1
A26: Puzzle Room | C26: 1 | D26: 1
A27: Completing Adventure | B27: 5
C28: =B20+B27+C21+C24+C26-C30 -> 40 | D28: =B20+B27+D21+D26+D31 -> 41 | E28: =B20+B27+E21+E22+E25+E31 -> 44 | F28: =B20+B27+F21+F23+F25+F31-4 -> 38 | G28: =B20+B27+G21+G22+G24-4 -> 37
A30: Slowing Down | C30: 1
A31: Focus | D31: 1 | E31: 1 | F31: 1
A33: Gold | B33: 615 | C33: 123 | D33: 123 | E33: 123 | F33: 123 | G33: 123

Sheet Tables
E1: Natural weapons get bigger too
A2: 1 | B2: 2 | C2: 3 | D2: 4 | E2: 5 | F2: 6 | G2: 7
E3: Weapon | I3: lbs/stone | J3: 14
A4: Weapon | B4: Type | C4: Strength | D4: Dexterity | E4: To hit bonus | F4: Damage level | G4: Lookup value | H4: Missile | I4: stones | J4: 13
A5: - | B5: Slash | C5: 0 | D5: 0 | E5: -1 | F5: 1 | G5: =VLOOKUP(F5,New_damage,2,FALSE) -> d2 | H5: 1 | I5: lbs/stone | J5: =J3*J4 -> 182
A6: Claw | B6: Slash | C6: 0 | D6: 1 | E6: -1 | F6: 2 | G6: d3 | H6: 1
A7: Thump | B7: Bludgeon | C7: 0 | D7: 1 | E7: -1 | F7: 1 | G7: d2 | H7: 1 | I7: height | J7: Strength
A8: Bite | B8: Pierce | C8: 0 | D8: 1 | E8: -2 | F8: 3 | G8: d4 | H8: 1 | I8: 7 | J8: =POWER(I8/6,2.5)+3 -> 4.470168029
A9: Hug | B9: Bludgeon | C9: 0.5 | D9: 0.5 | E9: -2 | F9: 4 | G9: 2d4 | H9: 1
A10: Cleaver | B10: Chop | C10: 0.5 | D10: 0.5 | E10: 0 | F10: 3 | G10: d4 | H10: 1
A11: Bow - Short | B11: Pierce | C11: 0 | D11: 1 | E11: 1 | F11: 4 | G11: 2d4 | H11: 0
A12: Bow - Long | B12: Pierce | C12: 0 | D12: 1 | E12: 1 | F12: 6 | G12: d8 / d4 | H12: 0
A13: Crossbow | B13: Pierce | C13: 0 | D13: 1 | E13: 4 | F13: 5 | G13: d6 / d4 | H13: 0
A14: Missile | B14: Bludgeon | C14: 0 | D14: 1 | E14: -2 | F14: 1 | G14: d2 | H14: 0
A15: Battle-axe | B15: Slash | C15: 1 | D15: 0 | E15: -1 | F15: 5 | G15: d6 / d4 | H15: 1
A16: Battle-axe 2 hands | B16: Slash | C16: 1 | D16: 0 | E16: -1 | F16: 8 | G16: d10 / d6 | H16: 1
A17: Poll axe | B17: Bludgeon | C17: 0.5 | D17: 0.5 | E17: 2 | F17: 8 | G17: d10 / d6 | H17: 1
A18: Hand Axe | B18: Slash | C18: 0 | D18: 1 | E18: -3 | F18: 4 | G18: 2d4 | H18: 1
A19: War Hammer | B19: Bludgeon | C19: 1 | D19: 0 | E19: -1 | F19: 5 | G19: d6 / d4 | H19: 1
A20: Club | B20: Bludgeon | C20: 1 | D20: 0 | E20: -3 | F20: 2 | G20: d3 | H20: 1
A21: Mace | B21: Bludgeon | C21: 1 | D21: 0 | E21: -2 | F21: 4 | G21: 2d4 | H21: 1
A22: Morning Star | B22: Pierce | C22: 1 | D22: 0 | E22: -2 | F22: 4 | G22: 2d4 | H22: 1
A23: Morning Star Great | B23: Pierce | C23: 1 | D23: 0 | E23: 0 | F23: 7 | G23: d8 / d6 | H23: 1
A24: Morning Star-Flail | B24: Bludgeon | C24: 0 | D24: 1 | E24: -1 | F24: 5 | G24: d6 / d4 | H24: 1
A25: Spear | B25: Pierce | C25: 0 | D25: 1 | E25: 4 | F25: 3 | G25: d4 | H25: 1
A26: Spear 2 hands | B26: Pierce | C26: 0 | D26: 1 | E26: 4 | F26: 6 | G26: d8 / d4 | H26: 1
A27: Dagger | B27: Pierce | C27: 0 | D27: 1 | E27: 0 | F27: 3 | G27: d4 | H27: 1
A28: Falchion | B28: Chop | C28: 1 | D28: 0 | E28: 0 | F28: 5 | G28: d6 / d4 | H28: 1
A29: Cutlass | B29: Chop | C29: 1 | D29: 0 | E29: 1 | F29: 4 | H29: 1
A30: Short sword | B30: Pierce | C30: 0.5 | D30: 0.5 | E30: 1 | F30: 4 | G30: 2d4 | H30: 1
A31: Scimitar | B31: Slash | C31: 0.5 | D31: 0.5 | E31: 1 | F31: 6 | G31: d8 / d4 | H31: 1
A32: Arming Sword | B32: Slash | C32: 0.5 | D32: 0.5 | E32: 2 | F32: 5 | G32: d6 / d4 | H32: 1
A33: Bastard Sword | B33: Slash | C33: 0.5 | D33: 0.5 | E33: 2 | F33: 7 | G33: d8 / d6 | H33: 1
A34: Great Sword | B34: Slash | C34: 1 | D34: 0 | E34: 3 | F34: 9 | G34: d10 / d8 | H34: 1
A35: Staff | B35: Bludgeon | C35: 0 | D35: 1 | E35: 2 | F35: 4 | G35: 2d4 | H35: 1
A37: Body Armour | B37: Cut | C37: Thrust | D37: Chop | E37: Base AC | F37: Experience | I37: New Damage system
A38: - | B38: 1 | C38: 1 | D38: 1 | E38: 10 | F38: =SUM(B38:D38)/3+E38/5 -> 3 | I38: 1 | J38: d2 | N38: Armour translation | R38: d2
A39: Leather | B39: 3 | C39: 2 | D39: 2 | E39: 9 | F39: =SUM(B39:D39)/3+E39/5 -> 4.133333333 | I39: 2 | J39: d3 | K39: d3 | L39: Knife / club | N39: 1 | O39: 2 | R39: d3
A40: Padded | B40: 3 | C40: 3 | D40: 3 | E40: 8 | F40: 4.6 | I40: 3 | J40: d4 | K40: d4 | L40: dagger | N40: 2 | O40: 1.5 | R40: d4
A41: Scale (Leather) | B41: 3 | C41: 3 | D41: 4 | E41: 7 | F41: 4.733333333 | I41: 4 | J41: 2d4 | K41: d6 | N41: 3 | O41: 1 | R41: 2d4
A42: Boiled Leather | B42: 4 | C42: 3 | D42: 4 | E42: 7 | F42: 5.066666667 | I42: 5 | J42: d6 / d4 | K42: d8 | L42: sword / mace | N42: 4 | O42: 3/4 | R42: d6 / d4
A43: Scale (Iron) | B43: 5 | C43: 5 | D43: 5 | E43: 6 | F43: 6.2 | I43: 6 | J43: d8 / d4 | N43: 5 | O43: 1/2 | R43: d8 / d4
A44: Mail Hauberk | B44: 7 | C44: 5 | D44: 4 | E44: 6 | F44: 6.533333333 | I44: 7 | J44: d8 / d6 | N44: 6 | O44: 1/3 | R44: d10 / d4
A45: Mail | B45: 7 | C45: 5 | D45: 4 | E45: 6 | F45: 6.533333333 | I45: 8 | J45: d10 / d6 | N45: 7 | O45: 1/4 | R45: d12 / d4
A46: Coat of Plates | B46: 7 | C46: 6 | D46: 5 | E46: 6 | F46: 7.2 | I46: 9 | J46: d10 / d8 | N46: 8 | O46: 1/5 | R46: d12 / d6
A47: Plate | B47: 8 | C47: 7 | D47: 6 | E47: 6 | F47: 8.2 | I47: 0 | J47: d12 / d8 | N47: 9 | O47: 1/8 | R47: d12 / d8
A48: Hide | B48: 3 | C48: 3 | D48: 3 | E48: 9 | F48: 4.8 | I48: 10 | J48: d12 / d10 | N48: 10 | O48: 1/10 | R48: d12 / d10
A49: Thick Hide | B49: 6 | C49: 5 | D49: 4 | E49: 7 | F49: 6.4 | I49: 11 | J49: 2d12 | R49: 2d12
A50: Scales | B50: 3 | C50: 2 | D50: 2 | E50: 10 | F50: 4.333333333 | I50: 12 | J50: 2d12+d2 | R50: 2d12+d2
A51: Armoured scales | B51: 7 | C51: 7 | D51: 7 | E51: 9 | F51: 8.8 | I51: 13 | J51: 2d12 + d4 | R51: 2d12 + d4
A52: Stone scales | B52: 8 | C52: 8 | D52: 6 | E52: 9 | F52: 9.133333333 | I52: 14 | J52: 2d12 + 2d4 | R52: 2d12 + 2d4
A53: Dragon Scales | B53: 8 | C53: 8 | D53: 8 | E53: 9 | F53: 9.8 | I53: 15 | J53: 2d12 + d6 / d4 | R53: 2d12 + d6 / d4
A54: Bone | B54: 7 | C54: 10 | D54: 5 | E54: 9 | F54: 9.133333333 | I54: 16 | J54: 2d12 + d8/d4 | R54: 2d12 + d8/d4
I55: 17 | J55: 2d12 + d8 / d6 | R55: 2d12 + d10 / d4
I56: 18 | J56: 2d12 + d10/d6 | R56: 2d12 + d12/d4
I57: 19 | J57: 2d12 + d10 / d8 | R57: 2d12 + d12 / d6
I58: 20 | J58: 2d12 + d12 / d8 | R58: 2d12 + d12 / d8
I59: 21 | J59: 2d12 + d12 / d10 | R59: 2d12 + d12 / d10
I60: 22 | J60: 2d12 + 2d12 | R60: 2d12 + 2d12
D61: Defence / Attack | E61: Defence
A62: Creature Size (over) | B62: Feet | C62: Weapon size | D62: Melee attack | E62: Ranged Def. | F62: Melee defence | G62: Armour
A63: 0 | B63: Miniscule | C63: -4 | D63: 1 | E63: 5 | F63: 1 | G63: -2
A64: 1 | B64: Tiny | C64: -3 | D64: 0 | E64: 4 | F64: 0 | G64: -2
A65: 2 | B65: Very Small | C65: -2 | D65: -1 | E65: 3 | F65: -1 | G65: -1
A66: 2.5 | B66: Small | C66: -2 | D66: -2 | E66: 2 | F66: -2 | G66: -1
A67: 3.5 | B67: Short | C67: -1 | D67: -1 | E67: 1 | F67: -1 | G67: 0
A68: 4.5 | B68: Average | C68: 0 | D68: 0 | E68: 0 | F68: 0 | G68: 0
A69: 6.5 | B69: Big | C69: 1 | D69: 1 | E69: -1 | F69: 1 | G69: 0
A70: 7.5 | B70: Huge | C70: 3 | D70: 2 | E70: -2 | F70: 2 | G70: 1
A71: 9 | B71: Enormous | C71: 5 | D71: 3 | E71: -3 | F71: 3 | G71: 1
A72: 12 | B72: Massive | C72: 7 | D72: 2 | E72: -4 | F72: 3 | G72: 2
A73: 16 | B73: Giant | C73: 9 | D73: 1 | E73: -5 | F73: 2 | G73: 2
A74: 21 | B74: Titan | C74: 11 | D74: 0 | E74: -6 | F74: 1 | G74: 3
A78: Saving Throw | F78: Human | G78: Dwarf
A79: HD | B79: Save | E79: Height | F79: Weight | G79: Weight
A80: 0.5 | B80: 0 | E80: 0 | F80: =5.1*E80*E80 -> 0 | G80: =10*E80*E80 -> 0
A81: 1 | B81: 1 | E81: 0.5 | F81: 1.275 | G81: =10*E81*E81 -> 2.5
A82: 2 | B82: 1 | E82: 1 | F82: 5.1 | G82: 10
A83: 3 | B83: 2 | E83: 2 | F83: 20.4 | G83: 40
A84: 4 | B84: 3 | E84: 3 | F84: 45.9 | G84: 90
A85: 5 | B85: 3 | E85: 4 | F85: 81.6 | G85: 160
A86: 6 | B86: 4 | E86: 5 | F86: 127.5 | G86: 250
A87: 7 | B87: 5 | E87: 6 | F87: 183.6 | G87: 360
A88: 8 | B88: 5 | E88: 7 | F88: 249.9 | G88: 490
A89: 9 | B89: 6 | E89: 8 | F89: 326.4 | G89: 640
A90: 10 | B90: 7 | E90: 9 | F90: 413.1 | G90: 810
A91: 11 | B91: 7 | E91: 10 | F91: 510 | G91: 1000
A92: 12 | B92: 8 | E92: 11 | F92: 617.1 | G92: 1210
A93: 13 | B93: 9 | E93: 12 | F93: 734.4 | G93: 1440
A94: 14 | B94: 9 | E94: 13 | F94: 861.9 | G94: 1690
A95: 15 | B95: 10 | E95: 14 | F95: 999.6 | G95: 1960
A96: 16 | B96: 11 | E96: 15 | F96: 1147.5 | G96: 2250
A97: 17 | B97: 11 | E97: 16 | F97: =5.1*E97*E97 -> 1305.6 | G97: 2560
A101: Attackers | B101: Multiplier
A102: -1 | B102: -1
A103: 0 | B103: 0
A104: 1 | B104: 0.25
A105: 2 | B105: 0.5
A106: 3 | B106: 0.75
A107: 4 | B107: 1
A108: 5 | B108: 1.1
A109: 6 | B109: 1.2
A113: Special Attack | B113: Bonus | C113: Multiplier | D113: Parry
A114: 0 | B114: 0 | C114: 1 | D114: 0
A115: Mage 1 | B115: 15 | C115: 1 | D115: 0
A116: Mage 2 | B116: 30 | C116: 1 | D116: 0
A117: Mage 3 | B117: 60 | C117: 1 | D117: 0
A118: Mage 4 | B118: 120 | C118: 1 | D118: 0
A119: Mage 5 | B119: 250 | C119: 1 | D119: 0
A120: Mage 6 | B120: 500 | C120: 1 | D120: 0
A121: Mage 7 | B121: 1000 | C121: 1 | D121: 0
A122: Mage 8 | B122: 2000 | C122: 1 | D122: 0
A123: Mage 9 | B123: 4000 | C123: 1 | D123: 0
A124: Priest 1 | B124: 10 | C124: 1 | D124: 0
A125: Priest 2 | B125: 25 | C125: 1 | D125: 0
A126: Priest 3 | B126: 50 | C126: 1 | D126: 0
A127: Priest 4 | B127: 100 | C127: 1 | D127: 0
A128: Priest 5 | B128: 200 | C128: 1 | D128: 0
A129: Priest 6 | B129: 400 | C129: 1 | D129: 0
A130: Priest 7 | B130: 800 | C130: 1 | D130: 0
A131: Poison | B131: 10 | C131: 1.1 | D131: 2
A132: Paralysis | B132: 10 | C132: 1.1 | D132: 1
A133: Stagger | B133: 10 | C133: 1 | D133: 0
A134: Disease | B134: 2 | C134: 1 | D134: 1

Sheet Strength
C1: Strength | D1: Bench Press | E1: Weight
C3: -3 | D3: =200*EXP(0.231*C3) -> 100.0147191 | E3: =D3/14 -> 7.14390851
C4: -2 | D4: =200*EXP(0.231*C4) -> 126.004468 | E4: =D4/14 -> 9.000319142
C5: -1 | D5: 158.7478932 | E5: 11.33913523
C6: 0 | D6: 200 | E6: 14.28571429
C7: 1 | D7: 251.9718479 | E7: 17.99798913
C8: 2 | D8: 317.4490606 | E8: 22.6749329
C9: 3 | D9: 399.9411321 | E9: 28.56722372
C10: 4 | D10: 503.8695305 | E10: 35.99068075
C11: 5 | D11: 634.8046835 | E11: 45.34319168
C12: 6 | D12: 799.7645458 | E12: 57.12603898
C13: 7 | D13: 1007.590752 | E13: 71.97076803
C14: 8 | D14: 1269.422519 | E14: 90.67303707
C15: 9 | D15: 1599.293689 | E15: 114.2352635
C16: 10 | D16: 2014.884931 | E16: 143.9203522
C17: 11 | D17: 2538.471397 | E17: 181.3193855
C18: 12 | D18: 3198.116643 | E18: 228.4369031
C19: 13 | D19: 4029.176802 | E19: 287.798343
C20: 14 | D20: 5076.195621 | E20: 362.5854015
C21: 15 | D21: 6395.291955 | E21: 456.8065682
